Cogmind - Beta 10 @@@ ROGUE MODE // 2020.09.19 @ 17:02:43 Player: Pimski Result: Establishing 0b11! Performance ------------- Evolutions (9) 4500 Regions Visited (35) 7000 Robots Destroyed (661) 3305 Value Destroyed (36342) 36342 Prototype IDs (106) 2120 Alien Tech Used (10) 2000 Bonus (43642) 43642 TOTAL SCORE: 98909 Bonus ------- High Alert Combat Kills 25840 Follower Combat Kills 156 Aligned with FarCom 300 Met Data Miner 300 Met Imprinter 300 Destroyed Z-Imprinter 1000 Met Zhirov 300 Met Warlord at Base 500 MAIN.C Attacked Warlord 500 Met Warlord at Research 2000 Invited to Help at Command 2000 Destroyed MAIN.C Guards 500 Met MAIN.C 5000 Destroyed MAIN.C Shell 5000 Win 3000 Friendly Fire -3054 Cogmind --------- Core Integrity 521/1600 Matter 156/300 Energy 272/280 System Corruption 0% Temperature Cool (10) Movement Flying (12) Location 0b11 Command Parts ------- > --- POWER (2) -------- Light Quantum Reactor Light Quantum Reactor > --- PROPULSION (6) --- Cooled Impulse Thruster Impulse Thruster Array Cooled Q-thruster > --- UTILITY (15) ----- Large Storage Unit Dimensional Manipulator Zionite Metafield Generator Spectral Analyzer Advanced Targeting Computer Advanced Targeting Computer Experimental Targeting Computer Experimental Targeting Computer Experimental Target Analyzer Experimental Core Analyzer Advanced Armor Integrity Analyzer Experimental Weapon Cycler Centrium Medium Armor Plating > --- WEAPON (2) ------- Linear Accelerator Linear Accelerator > --- INVENTORY (10) --- Improved Quantum Reactor Cooled Q-thruster Linear Accelerator Linear Accelerator Peak State ------------ > --- POWER ------------ Vortex Chain Reactor > --- PROPULSION ------- Impulse Thruster Array Impulse Thruster Array Cooled Q-thruster Cooled Q-thruster > --- UTILITY ---------- Experimental Power Amplifier Large Storage Unit Dimensional Manipulator Zionite Metafield Generator Spectral Analyzer Experimental Targeting Computer Experimental Targeting Computer Experimental Target Analyzer Experimental Core Analyzer Advanced Armor Integrity Analyzer Precision Matter Filter Experimental Weapon Cycler Advanced Reaction Control System Experimental Phase Shifter Antimissile System > --- WEAPON ----------- Perforator > --- INVENTORY -------- Cooled Impulse Thruster Impulse Thruster Array Cooled Q-thruster Experimental Power Amplifier Advanced Phase Shifter Zionite Weapon Casing Experimental Focal Shield Integrity Redistributor Integrity Redistributor [Rating: 227] Favorites ----------- Power Vortex Chain Reactor Engine Heavy Ion Engine Reactor Vortex Chain Reactor Propulsion Impulse Thruster Array Treads Light Treads Leg Aluminum Leg Wheel Wheel Flight Unit Impulse Thruster Array Utility Large Storage Unit Device Experimental Sensor Array Storage Large Storage Unit Processor Advanced Signal Interpreter Hackware Advanced System Shield Protection Experimental Utility Shielding Weapon Improved Assault Rifle Energy Gun Phase Gun Energy Cannon Enhanced Nova Cannon Ballistic Gun Improved Assault Rifle Ballistic Cannon Perforator Launcher Improved Grenade Launcher Special Weapon Plasma Cutter Slashing Weapon Great Axe Piercing Weapon Lance Build | -11 -10 -10 -10 -9 -8 -7 -7 -7 -7 -7 -6 -6 -6 -6 -6 -5 -5 -5 -5 -5 -4 -4 -4 -4 -4 -4 -4 -3 -3 -3 -3 -2 -2 -1 -1 ------- Run | Scr Mat Min Exi Min Mat Fac Low Low Zio Dee Pro Fac Low Low Dat Pro Fac Upp Upp Zhi Pro Fac Was Fac Upp Upp War Pro Res Qua Sec Res Tes Acc Com Slots Evolved 18 | . . . . . 4 2 . . . . . 2 . . . . 2 . . . . 2 . . . . . . 2 . . 2 . 2 . Power 1 | . . . . . . . . . . . . . . . . . . . . . . . . . . . . . . . . 1 . . . Propulsion 4 | . . . . . . 2 . . . . . . . . . . . . . . . . . . . . . . 1 . . 1 . . . Utility 13 | . . . . . 4 . . . . . . 2 . . . . 2 . . . . 2 . . . . . . 1 . . . . 2 . Weapon . | . . . . . . . . . . . . . . . . . . . . . . . . . . . . . . . . . . . . Parts Attached 286 | 1 7 6 1 1 34 45 . . 1 17 1 5 1 2 . . 17 . . 5 . 8 . 7 2 . 4 . 9 9 8 15 16 8 56 Power 12 | . 1 . . . 1 3 . . . 2 . . . . . . . . . 1 . . . . . . . . 1 . . 1 . . 2 Engine 4 | . 1 . . . 1 2 . . . . . . . . . . . . . . . . . . . . . . . . . . . . . Core . | . . . . . . . . . . . . . . . . . . . . . . . . . . . . . . . . . . . . Reactor 8 | . . . . . . 1 . . . 2 . . . . . . . . . 1 . . . . . . . . 1 . . 1 . . 2 Propulsion 61 | . 2 2 1 . 11 18 . . . 3 1 1 . . . . 4 . . 2 . 3 . 3 . . . . 4 2 . 2 . . 2 Treads 26 | . 2 . . . 10 14 . . . . . . . . . . . . . . . . . . . . . . . . . . . . . Leg . | . . . . . . . . . . . . . . . . . . . . . . . . . . . . . . . . . . . . Wheel 3 | . . 2 1 . . . . . . . . . . . . . . . . . . . . . . . . . . . . . . . . Hover . | . . . . . . . . . . . . . . . . . . . . . . . . . . . . . . . . . . . . Flight 32 | . . . . . 1 4 . . . 3 1 1 . . . . 4 . . 2 . 3 . 3 . . . . 4 2 . 2 . . 2 Utility 136 | 1 2 . . . 12 6 . . 1 9 . 4 . 1 . . 9 . . 2 . 5 . 4 2 . 4 . 4 3 4 9 10 7 37 Device 63 | 1 . . . . 4 1 . . . 6 . 1 . . . . 2 . . 1 . 1 . 1 2 . 3 . . 2 2 6 6 3 21 Storage 18 | . 2 . . . 4 1 . . . 2 . . . . . . 1 . . . . . . 1 . . . . 1 1 . 2 . . 3 Processor 14 | . . . . . . 1 . . 1 . . . . 1 . . . . . . . . . . . . . . . . . 1 1 3 6 Hackware 18 | . . . . . . 3 . . . . . 3 . . . . 4 . . . . 3 . 2 . . . . 2 . . . 1 . . Protection 23 | . . . . . 4 . . . . 1 . . . . . . 2 . . 1 . 1 . . . . 1 . 1 . 2 . 2 1 7 Artifact . | . . . . . . . . . . . . . . . . . . . . . . . . . . . . . . . . . . . . Weapon 77 | . 2 4 . 1 10 18 . . . 3 . . 1 1 . . 4 . . . . . . . . . . . . 4 4 3 6 1 15 Energy Gun 6 | . . . . . . . . . . . . . . . . . . . . . . . . . . . . . . . . . . . 6 Energy Cannon 11 | . . . . . . . . . . . . . . . . . . . . . . . . . . . . . . 2 2 2 4 . 1 Ballistic Gun 29 | . 2 3 . 1 9 13 . . . . . . . . . . . . . . . . . . . . . . . . . . . . 1 Ballistic Cannon 9 | . . . . . . . . . . . . . . . . . . . . . . . . . . . . . . . . . 1 1 7 Launcher 4 | . . 1 . . 1 2 . . . . . . . . . . . . . . . . . . . . . . . . . . . . . Special Weapon 4 | . . . . . . 1 . . . 2 . . . . . . 1 . . . . . . . . . . . . . . . . . . Impact Weapon . | . . . . . . . . . . . . . . . . . . . . . . . . . . . . . . . . . . . . Slashing Weapon 7 | . . . . . . 2 . . . 1 . . . 1 . . . . . . . . . . . . . . . 1 2 . . . . Piercing Weapon 7 | . . . . . . . . . . . . . 1 . . . 3 . . . . . . . . . . . . 1 . 1 1 . . Special Melee Weapon . | . . . . . . . . . . . . . . . . . . . . . . . . . . . . . . . . . . . . Unidentified Prototypes 31 | . . . . . 3 . . . . 5 . . . . . . 1 . . 4 . . . . . . 2 . 1 2 . 3 3 . 7 Parts Lost 54 | . 2 3 . 1 10 11 . . . 7 1 . . . . 2 . . . . . . . . . . . . . . 1 . . . 16 Power 5 | . . . . 1 . 2 . . . 1 . . . . . . . . . . . . . . . . . . . . . . . . 1 Propulsion 17 | . . 2 . . 4 4 . . . 3 1 . . . . . . . . . . . . . . . . . . . . . . . 3 Utility 14 | . . . . . 2 . . . . 1 . . . . . 1 . . . . . . . . . . . . . . . . . . 10 Weapon 18 | . 2 1 . . 4 5 . . . 2 . . . . . 1 . . . . . . . . . . . . . . 1 . . . 2 Highest Loss Streak 7 | . 2 2 . 1 3 5 . . . 7 1 . . . . 2 . . . . . . . . . . . . . . 1 . . . 6 Average Slot Usage (%) 90 | . 100 97 100 100 87 96 100 100 100 88 92 91 100 100 100 93 97 94 94 91 94 93 89 88 89 89 88 89 89 84 84 80 83 80 83 Engine 3 | . 14 14 14 14 5 6 . . . . . . . . . . . . . . . . . . . . . . . . . . . . . Reactor 2 | . . . . . . . 7 7 7 6 7 6 6 6 6 6 5 5 5 4 5 5 5 5 5 5 5 5 3 4 4 4 4 4 4 Treads 7 | . 17 22 . . 16 28 . . . . . . . . . . . . . . . . . . . . . . . . . . . . . Wheel 1 | . . 3 28 28 1 . . . . . . . . . . . . . . . . . . . . . . . . . . . . . . Flight 11 | . . . . . . . 30 30 30 28 30 26 26 26 26 26 22 17 17 17 17 14 15 15 15 15 15 15 18 13 14 17 17 16 16 Device 8 | . . . . . 9 . 7 7 7 9 15 13 13 13 13 9 5 5 5 3 5 5 5 5 5 5 4 5 4 4 3 7 6 16 26 Storage 16 | . 27 28 28 28 30 29 7 7 7 10 15 6 6 6 6 6 5 5 5 5 5 5 5 5 10 10 10 10 9 13 14 13 13 11 4 Processor 6 | . . . . . . . 7 7 9 10 7 6 6 6 13 13 6 5 5 5 5 5 5 5 5 5 5 5 4 4 4 4 4 4 26 Hackware 15 | . . . . . . 11 23 23 20 12 7 23 26 26 20 20 34 35 35 35 35 44 42 46 42 42 39 36 39 33 33 30 30 15 . Protection 2 | . . . . . 5 1 . . . . . . . . . . 3 5 5 5 5 2 5 . . . 1 5 2 4 4 . 1 4 2 Ballistic Gun 7 | . 28 28 28 28 17 14 . . . . . . . . . . . . . . . . . . . . . . . . . . . . . Piercing Weapon 1 | . . . . . . . . . . . . . 6 6 6 6 8 11 11 11 11 9 5 5 5 5 5 5 4 3 . 2 4 3 . Naked Turns . | . . . . . . . . . . . . . . . . . . . . . . . . . . . . . . . . . . . . Heaviest Build 109 | 12 39 38 38 38 109 109 26 26 26 26 24 24 26 26 25 25 34 34 34 36 36 36 35 40 42 40 41 41 49 66 66 91 98 103 101 Greatest Support 107 | 20 40 40 26 26 45 86 26 26 26 26 25 26 26 30 26 30 34 34 34 36 44 36 36 42 42 42 42 46 59 68 68 82 107 107 107 Greatest Overweight (x) 3 | . 1 3 1 1 2 3 . . . . 1 . . . . . . . . . . 1 . . . . . . . . . 1 1 . . Average Overweight (x) . | . . . 1 1 1 . . . . . . . . . . . . . . . . . . . . . . . . . . . . . . Largest Inventory Capacity 30 | 6 16 16 16 16 30 30 8 8 8 8 8 8 8 8 8 8 10 10 10 10 10 10 10 14 14 14 14 14 16 20 20 20 20 20 16 Average Capacity 17 | 6 15 16 16 16 25 29 8 8 8 7 8 8 8 8 8 8 8 10 10 10 10 10 10 10 14 14 14 14 15 19 20 20 20 19 10 Most Carried 30 | 6 16 16 16 16 30 30 8 8 8 8 8 8 8 8 8 7 10 10 10 10 10 10 10 11 14 14 14 14 16 20 20 20 20 20 16 Average Carried 16 | 6 14 15 15 15 24 29 8 8 8 6 7 7 8 8 7 7 7 10 9 10 10 8 10 10 12 14 13 14 15 19 19 19 19 19 10 Final Capacity 30 | 6 16 16 16 16 30 8 8 8 8 8 8 8 8 8 8 8 10 10 10 10 10 10 10 14 14 14 14 14 16 20 20 20 20 16 10 Final Carried 30 | 6 16 16 16 16 30 8 8 8 8 8 7 8 8 8 7 7 10 10 10 10 10 10 10 11 14 14 14 14 16 20 20 20 20 15 4 Class Distribution -------------------- 31% | Wizard-Sprinter 28% | Hauler-Mutant 14% | Machinist-Sprinter 11% | Mutant 9% | Hacker-Sprinter Dominant Class ---------------- Mutant | -10/Materials Mutant | -10/Mines Mutant | -10/Exiles Mutant | -9/Mines Hauler-Mutant | -8/Materials Hauler-Mutant | -7/Factory Hacker-Sprinter | -7/Lower Caves Hacker-Sprinter | -7/Lower Caves Hacker-Sprinter | -7/Zion Hacker-Sprinter | -7/Deep Caves Sprinter | -6/Proximity Caves Hacker-Sprinter | -6/Factory Hacker-Sprinter | -6/Lower Caves Hacker-Sprinter | -6/Lower Caves Hacker-Sprinter | -6/Data Miner Hacker-Sprinter | -5/Proximity Caves Wizard-Sprinter | -5/Factory Wizard-Sprinter | -5/Upper Caves Wizard-Sprinter | -5/Upper Caves Wizard-Sprinter | -5/Zhirov Wizard-Sprinter | -4/Proximity Caves Wizard-Sprinter | -4/Factory Wizard-Sprinter | -4/Waste Wizard-Sprinter | -4/Factory Wizard-Sprinter | -4/Upper Caves Wizard-Sprinter | -4/Upper Caves Wizard-Sprinter | -4/Warlord Wizard-Sprinter | -3/Proximity Caves Wizard-Sprinter | -3/Research Wizard-Sprinter | -3/Quarantine Wizard-Sprinter | -3/Section 7 Wizard-Sprinter | -2/Research Wizard-Sprinter | -2/Testing Wizard-Sprinter | -1/Access Machinist-Sprinter | -1/Command Resources | -11 -10 -10 -10 -9 -8 -7 -7 -7 -7 -7 -6 -6 -6 -6 -6 -5 -5 -5 -5 -5 -4 -4 -4 -4 -4 -4 -4 -3 -3 -3 -3 -2 -2 -1 -1 ----------- Run | Scr Mat Min Exi Min Mat Fac Low Low Zio Dee Pro Fac Low Low Dat Pro Fac Upp Upp Zhi Pro Fac Was Fac Upp Upp War Pro Res Qua Sec Res Tes Acc Com Matter Collected 22314 | 216 190 153 17 . 1671 1355 . . 10 140 10 . 60 20 . . 150 20 . 70 . 22 . 140 25 . 15 35 90 . 170 185 90 . 17460 Remotely 10 | 10 . . . . . . . . . . . . . . . . . . . . . . . . . . . . . . . . . . . Salvage Created 43032 | 73 523 315 . . 3285 2122 . . 28 314 . . . . . . 909 . . 454 . 22 . 371 . . . . 283 32 261 147 407 . 33486 Parts 1392 | 3 28 23 . . 155 109 . . 2 6 . . . . . . 28 . . 4 . 2 . 12 . . . . 6 1 11 5 11 . 986 Haulers Intercepted 20 | . 1 . . . 6 2 . . . . . . . . . . 5 . . . . . . 1 . . . . 1 . 1 1 2 . . Recyclers Shooed 20 | . 4 2 . . 7 5 . . . . . . . . . . . . . . . . . . . . . . . . . . . . 2 Parts Field Recycled . | . . . . . . . . . . . . . . . . . . . . . . . . . . . . . . . . . . . . Retrieved Matter . | . . . . . . . . . . . . . . . . . . . . . . . . . . . . . . . . . . . . Parts Self-Destructed 18 | . . . . . . . . . . . . . 11 2 . 2 . . . 3 . . . . . . . . . . . . . . . Prevented 8 | . . . . . . . . . . . . . 2 . . . . . . . . . . . . . 6 . . . . . . . . Kills | -11 -10 -10 -10 -9 -8 -7 -7 -7 -7 -7 -6 -6 -6 -6 -6 -5 -5 -5 -5 -5 -4 -4 -4 -4 -4 -4 -4 -3 -3 -3 -3 -2 -2 -1 -1 ------- Run | Scr Mat Min Exi Min Mat Fac Low Low Zio Dee Pro Fac Low Low Dat Pro Fac Upp Upp Zhi Pro Fac Was Fac Upp Upp War Pro Res Qua Sec Res Tes Acc Com Combat Hostiles Destroyed 508 | . 11 10 . . 47 29 . . . . . . . . . . . . . . . . . . . . . . . . . . . . 411 Melee 1 | . . . . . . . . . . . . . . . . . . . . . . . . . . . . . . . . . . . 1 Guns 90 | . 11 7 . . 47 24 . . . . . . . . . . . . . . . . . . . . . . . . . . . . 1 Cannons 409 | . . . . . . . . . . . . . . . . . . . . . . . . . . . . . . . . . . . 409 AOE 8 | . . 3 . . . 5 . . . . . . . . . . . . . . . . . . . . . . . . . . . . . Classes Destroyed 20 | 1 3 1 . . 6 2 . . . . . . . . . . . . . . . . . . . . . . . . . . . . 7 Worker 26 | . . 1 . . 6 3 . . . . . . . . . . . . . . . . . . . . . . . . . . . . 16 Builder 4 | . . . . . 1 3 . . . . . . . . . . . . . . . . . . . . . . . . . . . . . Hauler 20 | . 1 . . . 6 2 . . . . . . . . . . 5 . . . . . . 1 . . . . 1 . 1 1 2 . . Recycler 35 | 1 2 1 . . 9 8 . . . . . . . . . . 2 . . . . . . 2 . . . . 1 . 1 . 1 . 7 Carrier 26 | . . . . . . . . . . . . . . . . . . . . . . . . . . . . . . . . . . . 26 Mechanic 3 | . . . . . . . . . . . . . . . . . . . . . . . . . . . . . . . . . . . 3 Operator 5 | . . . . . 1 . . . . . . . . . . . 1 . . . . 1 . . . . . . . . . . . . 2 Watcher 16 | . . . . . 5 . . . . . . . . . . . 3 . . . . . . . . . . . 1 1 1 1 . . 4 Swarmer 105 | . 3 6 . . 13 4 . . . . . . . . . . . . . . . . . . . . . . . . . . . . 79 Saboteur 20 | . . . . . . . . . . . . . . . . . . . . . . . . . . . . . . . . . . . 20 Grunt 160 | . 8 4 . . 22 14 . . . . . . . . . . . . . . . . . . . . . . . . . . . . 112 Brawler 26 | . . . . . . 1 . . . . . . . . . . . . . . . . . . . . . . . . . . . . 25 Duelist 25 | . . . . . 1 1 . . . . . . . . . . . . . . . . . . . . . . . . . . . . 23 Protector 15 | . . . . . . . . . . . . . . . . . . . . . . . . . . . . . . . . . . . 15 Sentry 18 | . . . . . 10 5 . . . . . . . . . . . . . . . . . . . . . . . . . . . . 3 Demolisher 11 | . . . . . . . . . . . . . . . . . . . . . . . . . . . . . . . . . . . 11 Specialist 12 | . . . . . . . . . . . . . . . . . . . . . . . . . . . . . . . . . . . 12 Hunter 52 | . . . . . 1 . . . . . . . . . . . . . . . . . . . . . . . . . . . . . 51 Programmer 58 | . . . . . . 4 . . . . . . . . . . . . . . . . . . . . . . . . . . . . 54 M Guard 2 | . . . . . . . . . . . . . . . . . . . . . . . . . . . . . . . . . . . 2 Enhanced Q-Series 10 | . . . . . . . . . . . . . . . . . . . . . . . . . . . . . . . . . . . 10 Combat Programmer 2 | . . . . . . . . . . . . . . . . . . . . . . . . . . . . . . . . . . . 2 Z-Technician 5 | . . . . . . . . . . 5 . . . . . . . . . . . . . . . . . . . . . . . . . Wasp 1 | . . . . . . . . . 1 . . . . . . . . . . . . . . . . . . . . . . . . . . Thug 2 | . . . . . . . . . . 2 . . . . . . . . . . . . . . . . . . . . . . . . . Savage 1 | . . . . . . . . . . 1 . . . . . . . . . . . . . . . . . . . . . . . . . Best Kill Streak 92 | 1 5 5 . . 7 4 . . . 5 . . . . . . 3 . . . . . . 2 . . . . 1 1 1 1 1 . 92 Combat Bots Only 87 | . 5 5 . . 4 3 . . . . . . . . . . . . . . . . . . . . . . . . . . . . 87 Max Kills in Single Turn 5 | 1 1 2 . . 2 2 . . 1 1 . . . . . . 1 . . . . 1 . 1 . . . . 1 1 1 1 1 . 5 Gunslinging . | . . . . . . . . . . . . . . . . . . . . . . . . . . . . . . . . . . . . Exploded 2 | . . 2 . . . 2 . . . . . . . . . . . . . . . . . . . . . . . . . . . . . Melee 1 | . . . . . . . . . . . . . . . . . . . . . . . . . . . . . . . . . . . 1 Uniques/NPCs Destroyed 2 | . . . . . . . . . . 1 . . . . . . . . . . . . . . . . . . . . . . . . 1 Z-Imprinter (-7/Deep Caves) MAIN.C Shell (-1/Command) Combat | -11 -10 -10 -10 -9 -8 -7 -7 -7 -7 -7 -6 -6 -6 -6 -6 -5 -5 -5 -5 -5 -4 -4 -4 -4 -4 -4 -4 -3 -3 -3 -3 -2 -2 -1 -1 -------- Run | Scr Mat Min Exi Min Mat Fac Low Low Zio Dee Pro Fac Low Low Dat Pro Fac Upp Upp Zhi Pro Fac Was Fac Upp Upp War Pro Res Qua Sec Res Tes Acc Com Damage Taken 14485 | . 483 402 . 75 2272 2925 63 23 . 724 78 . 33 72 90 159 . . . . 59 45 . . 104 . . 84 40 191 875 . 109 18 5561 Core 2144 | . 40 82 . 33 373 265 . . . 234 19 . . 28 . 19 . . . . . . . . 41 . . 16 . 29 . . 24 . 941 Absorbed by Shields . | . . . . . . . . . . . . . . . . . . . . . . . . . . . . . . . . . . . . Core Remaining (%) 70 | 100 . . . 38 32 . . . . . 26 . . . . 94 . . . . 91 . . . . . . 95 . . 97 . 98 . 32 Volleys Fired 1352 | 3 67 33 . 4 226 130 . . . 6 . . . . . . . . . . . . . . . . . . . 3 5 14 10 7 844 Largest 2 | 2 2 2 . 2 2 2 . . . 2 . . . . . . . . . . . . . . . . . . . 1 1 1 1 1 2 Hottest 208 | 40 40 40 . 40 46 56 . . . 40 . . . . . . . . . . . . . . . . . . . 113 113 113 120 120 208 Shots Fired 1824 | 6 134 64 . 8 447 249 . . . 10 . . . . . . . . . . . . . . . . . . . 3 5 14 10 7 867 Gun 915 | 6 134 62 . 8 445 242 . . . . . . . . . . . . . . . . . . . . . . . . . . . . 18 Cannon 888 | . . . . . . . . . . . . . . . . . . . . . . . . . . . . . . 3 5 14 10 7 849 Launcher 11 | . . 2 . . 2 7 . . . . . . . . . . . . . . . . . . . . . . . . . . . . . Special 10 | . . . . . . . . . . 10 . . . . . . . . . . . . . . . . . . . . . . . . . Kinetic 1735 | 6 134 62 . 8 445 242 . . . . . . . . . . . . . . . . . . . . . . . . . . . . 838 Thermal 78 | . . . . . . . . . . 10 . . . . . . . . . . . . . . . . . . . 3 5 14 10 7 29 Explosive 11 | . . 2 . . 2 7 . . . . . . . . . . . . . . . . . . . . . . . . . . . . . Electromagnetic . | . . . . . . . . . . . . . . . . . . . . . . . . . . . . . . . . . . . . Robot Hit Streak 52 | 2 20 13 . 4 22 29 . . . 3 . . . . . . . . . . . . . . . . . . . . . 7 . . 52 Robot Miss Streak 13 | 2 5 5 . 2 4 8 . . . 6 . . . . . . . . . . . . . . . . . . . . . 1 . . 13 Penetration Max 3 | . . . . . . . . . . . . . . . . . . . . . . . . . . . . . . . . . . . 3 Secondary Targets 4 | . . . . . 2 2 . . . . . . . . . . . . . . . . . . . . . . . . . . . . . Max Gunslinging Chain 1 | . . . . . 1 1 . . . . . . . . . . . . . . . . . . . . . . . . . . . . . Shots Hit Robots 1580 | 3 94 44 . 5 334 208 . . 1 26 . . . . 1 . 18 . . 8 . 2 . 4 . . . . 10 1 4 12 19 . 786 Core Hits 2594 | 2 37 23 . . 134 141 . . 1 9 . . . . . . 12 . . 3 . 2 . 3 . . . . 4 1 3 2 5 . 2212 Critical Hits 1521 | . 3 1 . . 5 1 . . . 2 . . . . . . . . . . . 1 . . . . . . . . 1 . . . 1507 Critical Kills 441 | . 1 1 . . 3 1 . . . 1 . . . . . . . . . . . 1 . . . . . . . . 1 . . . 432 Critical Parts Destroyed 674 | . 2 . . . 2 . . . . . . . . . . . . . . . . . . . . . . . . . . . . . 670 Melee Attacks 344 | . . . . . . 1 . 1 20 40 . 9 12 . 1 4 43 . 3 9 4 27 . 8 3 6 . 1 22 20 19 47 35 9 . Impact . | . . . . . . . . . . . . . . . . . . . . . . . . . . . . . . . . . . . . Slashing 96 | . . . . . . 1 . 1 20 40 . 9 1 . 1 . . . . . . . . . . . . . . 4 19 . . . . Piercing 248 | . . . . . . . . . . . . . 11 . . 4 43 . 3 9 4 27 . 8 3 6 . 1 22 16 . 47 35 9 . Sneak Attacks 39 | . . . . . . . . . 1 14 . . . . 1 . 10 . . . . 1 . 3 . . . . 3 1 2 . 3 . . Combat Hostiles . | . . . . . . . . . . . . . . . . . . . . . . . . . . . . . . . . . . . . Follow-up Attacks 3 | . . . . . . . . . . . . . . . . . 2 . . 1 . . . . . . . . . . . . . . . Damage Inflicted 39500 | 26 788 603 . 50 5005 4275 . . 117 2449 . . . . 125 . 1542 . . 959 . 147 . 430 . . . . 702 108 673 584 2408 . 18509 Guns 10047 | 26 782 386 . 50 4970 3360 . . . . . . . . . . . . . . . . . . . . . . . . . . . . 473 Cannons 18550 | . . . . . . . . . . . . . . . . . . . . . . . . . . . . . . . . 514 . . 18036 Explosions 1122 | . . 217 . . . 905 . . . . . . . . . . . . . . . . . . . . . . . . . . . . . Melee 9664 | . . . . . . . . . 117 2384 . . . . 125 . 1542 . . 959 . 146 . 430 . . . . 702 108 673 70 2408 . . Ramming 52 | . 6 . . . 35 10 . . . . . . . . . . . . . . . 1 . . . . . . . . . . . . . Kinetic 27186 | 26 782 386 . 50 4970 3360 . . . . . . . . . . . . . . . . . . . . . . . . . . . . 17612 Thermal 1476 | . . . . . . . . . . 65 . . . . . . . . . . . . . . . . . . . . . 514 . . 897 Explosive 1122 | . . 217 . . . 905 . . . . . . . . . . . . . . . . . . . . . . . . . . . . . Electromagnetic . | . . . . . . . . . . . . . . . . . . . . . . . . . . . . . . . . . . . . Impact . | . . . . . . . . . . . . . . . . . . . . . . . . . . . . . . . . . . . . Slashing 3299 | . . . . . . . . . 117 2384 . . . . 125 . . . . . . . . . . . . . . . 673 . . . . Piercing 6365 | . . . . . . . . . . . . . . . . . 1542 . . 959 . 146 . 430 . . . . 702 108 . 70 2408 . . Highest Corruption 5 | . . . . . . . . . . . . . . . . . . . . . . 5 5 5 5 5 5 . . . . . . . . Average Corruption 5 | . . . . . . . . . . . . . . . . . . . . . . 5 5 5 5 5 5 . . . . . . . . Corruption Purged . | . . . . . . . . . . . . . . . . . . . . . . . . . . . . . . . . . . . . Effects 28 | . . . . . . . . . . . . . . . . . . . . . . 7 . 10 5 6 . . . . . . . . . Message Errors 8 | . . . . . . . . . . . . . . . . . . . . . . 3 . 2 2 1 . . . . . . . . . Matter Fused 5 | . . . . . . . . . . . . . . . . . . . . . . 1 . 2 1 1 . . . . . . . . . Heat Flow Errors 5 | . . . . . . . . . . . . . . . . . . . . . . 3 . 1 1 . . . . . . . . . . Energy Discharges 3 | . . . . . . . . . . . . . . . . . . . . . . . . 2 . 1 . . . . . . . . . Data Loss (minor) 4 | . . . . . . . . . . . . . . . . . . . . . . . . 2 1 1 . . . . . . . . . Data Loss (major) 1 | . . . . . . . . . . . . . . . . . . . . . . . . . . 1 . . . . . . . . . Targeting Errors 2 | . . . . . . . . . . . . . . . . . . . . . . . . 1 . 1 . . . . . . . . . Overload Shots . | . . . . . . . . . . . . . . . . . . . . . . . . . . . . . . . . . . . . Overflow Damage 2752 | . . . . . . 46 . . . 947 . . . . 5 . 52 . . 446 . . . 72 . . . . 259 . 193 80 194 . 458 Projectiles 538 | . . . . . . . . . . . . . . . . . . . . . . . . . . . . . . . . 80 . . 458 Explosions 46 | . . . . . . 46 . . . . . . . . . . . . . . . . . . . . . . . . . . . . . Melee 2168 | . . . . . . . . . . 947 . . . . 5 . 52 . . 446 . . . 72 . . . . 259 . 193 . 194 . . Knockbacks 255 | . . . . . . . . . . . . . . . . . . . . . . . . . . . . . . . . . . . 255 Impact . | . . . . . . . . . . . . . . . . . . . . . . . . . . . . . . . . . . . . Kinetic 247 | . . . . . . . . . . . . . . . . . . . . . . . . . . . . . . . . . . . 247 Secondary 8 | . . . . . . . . . . . . . . . . . . . . . . . . . . . . . . . . . . . 8 Self-Inflicted Damage 41 | . . . . . . 41 . . . . . . . . . . . . . . . . . . . . . . . . . . . . . Shots 1 | . . . . . . 1 . . . . . . . . . . . . . . . . . . . . . . . . . . . . . Rammed 10 | . 1 . . . 6 2 . . . . . . . . . . . . . . . 1 . . . . . . . . . . . . . Targets Rammed 11 | . 1 . . . 6 3 . . . . . . . . . . . . . . . 1 . . . . . . . . . . . . . Kicked . | . . . . . . . . . . . . . . . . . . . . . . . . . . . . . . . . . . . . Crushed 1 | . . . . . . 1 . . . . . . . . . . . . . . . . . . . . . . . . . . . . . Highest Temperature 194 | . 18 18 . 9 . 8 21 . . 57 . . . . . . 3 . . . . 194 . 65 103 . . . . . . . . . . Average Temperature 20 | . 9 10 . 7 . 3 8 . . 23 . . . . . . 3 . . . . 96 . 43 68 . . . . . . . . . . Received Heat Transfer 2745 | . 228 171 . 27 882 570 36 . . 228 27 . 9 18 12 . . . . . . 12 . . . . . 9 9 9 57 . . 9 432 Siege Activations . | . . . . . . . . . . . . . . . . . . . . . . . . . . . . . . . . . . . . Robots Corrupted . | . . . . . . . . . . . . . . . . . . . . . . . . . . . . . . . . . . . . Combat Hostiles . | . . . . . . . . . . . . . . . . . . . . . . . . . . . . . . . . . . . . Parts Fried . | . . . . . . . . . . . . . . . . . . . . . . . . . . . . . . . . . . . . Impact Corruptions . | . . . . . . . . . . . . . . . . . . . . . . . . . . . . . . . . . . . . Robots Melted . | . . . . . . . . . . . . . . . . . . . . . . . . . . . . . . . . . . . . Combat Hostiles . | . . . . . . . . . . . . . . . . . . . . . . . . . . . . . . . . . . . . Parts Melted 1 | . . . . . . 1 . . . . . . . . . . . . . . . . . . . . . . . . . . . . . Heat Transferred 824 | . . . . . . . . . . 82 . . . . . . . . . . . . . . . . . . . . . 481 . . 261 Parts Sabotaged . | . . . . . . . . . . . . . . . . . . . . . . . . . . . . . . . . . . . . Parts Stolen . | . . . . . . . . . . . . . . . . . . . . . . . . . . . . . . . . . . . . Parts Stripped . | . . . . . . . . . . . . . . . . . . . . . . . . . . . . . . . . . . . . Power Chain Reactions . | . . . . . . . . . . . . . . . . . . . . . . . . . . . . . . . . . . . . Missiles Intercepted . | . . . . . . . . . . . . . . . . . . . . . . . . . . . . . . . . . . . . Alert | -11 -10 -10 -10 -9 -8 -7 -7 -7 -7 -7 -6 -6 -6 -6 -6 -5 -5 -5 -5 -5 -4 -4 -4 -4 -4 -4 -4 -3 -3 -3 -3 -2 -2 -1 -1 ------- Run | Scr Mat Min Exi Min Mat Fac Low Low Zio Dee Pro Fac Low Low Dat Pro Fac Upp Upp Zhi Pro Fac Was Fac Upp Upp War Pro Res Qua Sec Res Tes Acc Com Peak Influence 2043 | 5 222 166 . . 417 581 . . . . . 50 . . . . 556 . . . . 461 191 585 . . . . 478 211 247 514 472 374 2043 Initial 283 | . 3 81 . . . 189 . . . . . . . . . . . . . . . . 161 133 . . . . . 173 8 58 161 283 239 Average 265 | 3 106 58 . . 201 308 . . . . . 26 . . . . 125 . . . . 86 172 180 . . . . 124 68 65 299 139 312 1317 Maximum Alert Level 5 | . 1 . . . 2 2 . . . . . . . . . . 2 . . . . 2 . 2 . . . . 2 1 1 2 2 1 5 Low Security (%) 52 | 100 81 100 . 100 43 36 . . . . . 100 . . . . 82 . . . . 87 100 94 . . . . 68 87 93 19 83 . 14 Level 1 22 | . 18 . . . 50 27 . . . . . . . . . . . . . . . . . . . . . . 30 12 6 61 5 100 1 Level 2 9 | . . . . . 5 35 . . . . . . . . . . 17 . . . . 12 . 5 . . . . . . . 18 11 . 2 Level 3 . | . . . . . . . . . . . . . . . . . . . . . . . . . . . . . . . . . . . 2 Level 4 3 | . . . . . . . . . . . . . . . . . . . . . . . . . . . . . . . . . . . 18 Level 5 11 | . . . . . . . . . . . . . . . . . . . . . . . . . . . . . . . . . . . 60 High Security . | . . . . . . . . . . . . . . . . . . . . . . . . . . . . . . . . . . . . Max Security . | . . . . . . . . . . . . . . . . . . . . . . . . . . . . . . . . . . . . Squads Dispatched 52 | . 5 . . . 4 9 . . . . . 2 . . . . 3 . . . . 3 . . . . . . . 1 1 2 3 1 18 Investigation 17 | . 2 . . . 2 3 . . . . . 1 . . . . . . . . . . . . . . . . . . . . . . 9 Extermination 10 | . . . . . . 3 . . . . . . . . . . 1 . . . . 1 . . . . . . . 1 . . . 1 3 Reinforcement 17 | . 3 . . . 2 2 . . . . . 1 . . . . 2 . . . . 1 . . . . . . . . 1 2 3 . . Assault 8 | . . . . . . 1 . . . . . . . . . . . . . . . 1 . . . . . . . . . . . . 6 Garrison . | . . . . . . . . . . . . . . . . . . . . . . . . . . . . . . . . . . . . Intercept . | . . . . . . . . . . . . . . . . . . . . . . . . . . . . . . . . . . . . Construction Impeded 3 | . . . . . 1 1 . . . . . . . . . . . . . . . 1 . . . . . . . . . . . . . Haulers Reinforced 2 | . . . . . . . . . . . . . . . . . 1 . . . . . . . . . . . . . . 1 . . . Stealth | -11 -10 -10 -10 -9 -8 -7 -7 -7 -7 -7 -6 -6 -6 -6 -6 -5 -5 -5 -5 -5 -4 -4 -4 -4 -4 -4 -4 -3 -3 -3 -3 -2 -2 -1 -1 --------- Run | Scr Mat Min Exi Min Mat Fac Low Low Zio Dee Pro Fac Low Low Dat Pro Fac Upp Upp Zhi Pro Fac Was Fac Upp Upp War Pro Res Qua Sec Res Tes Acc Com Distress Signals 27 | . 1 . . . 7 1 . . . . . . . . . . 1 . . . . 1 . . . . . . 1 1 2 6 2 . 4 Communications Jammed . | . . . . . . . . . . . . . . . . . . . . . . . . . . . . . . . . . . . . Distress Signals . | . . . . . . . . . . . . . . . . . . . . . . . . . . . . . . . . . . . . Times Spotted 752 | . 25 10 . 6 84 42 12 4 . 3 7 7 15 4 4 3 11 . . . 3 22 4 2 4 . 2 3 7 10 27 2 10 3 416 Peak Tracking Total 17 | . 5 3 . 7 9 5 17 3 . 3 8 4 5 4 4 2 2 . . . 3 10 4 2 4 . 4 3 2 5 11 1 4 4 13 Tactical Retreats 103 | . . . . . 14 1 2 2 . . 2 2 9 1 . 1 . . . . 2 5 . . . . . 2 1 2 10 1 1 . 45 Traps | -11 -10 -10 -10 -9 -8 -7 -7 -7 -7 -7 -6 -6 -6 -6 -6 -5 -5 -5 -5 -5 -4 -4 -4 -4 -4 -4 -4 -3 -3 -3 -3 -2 -2 -1 -1 ------- Run | Scr Mat Min Exi Min Mat Fac Low Low Zio Dee Pro Fac Low Low Dat Pro Fac Upp Upp Zhi Pro Fac Was Fac Upp Upp War Pro Res Qua Sec Res Tes Acc Com Traps Triggered 16 | . 2 . . . 1 4 . . . . . . . . . . . . . . . 2 . . . . . . . 1 2 . . . 4 Indirectly . | . . . . . . . . . . . . . . . . . . . . . . . . . . . . . . . . . . . . Trap Hack Attempts . | . . . . . . . . . . . . . . . . . . . . . . . . . . . . . . . . . . . . Triggered . | . . . . . . . . . . . . . . . . . . . . . . . . . . . . . . . . . . . . Disarmed 4 | . . . . . . . . . . . . . . . . . . . . . . . . . . . . . . . . . 4 . . Reprogrammed . | . . . . . . . . . . . . . . . . . . . . . . . . . . . . . . . . . . . . Reused . | . . . . . . . . . . . . . . . . . . . . . . . . . . . . . . . . . . . . Traps Extracted . | . . . . . . . . . . . . . . . . . . . . . . . . . . . . . . . . . . . . Installed . | . . . . . . . . . . . . . . . . . . . . . . . . . . . . . . . . . . . . Triggered 4 | . . . . . . . . . . . 1 . . . . 2 . . . . . . . . . . 1 . . . . . . . . Machines | -11 -10 -10 -10 -9 -8 -7 -7 -7 -7 -7 -6 -6 -6 -6 -6 -5 -5 -5 -5 -5 -4 -4 -4 -4 -4 -4 -4 -3 -3 -3 -3 -2 -2 -1 -1 ---------- Run | Scr Mat Min Exi Min Mat Fac Low Low Zio Dee Pro Fac Low Low Dat Pro Fac Upp Upp Zhi Pro Fac Was Fac Upp Upp War Pro Res Qua Sec Res Tes Acc Com Machines Disabled 21 | . . . . . 1 1 . . . 1 . . . . . . . . . . . . . . . . . . . 3 7 1 7 . . Max in Single Turn 1 | . . . . . 1 1 . . . 1 . . . . . . . . . . . . . . . . . . . 1 1 1 1 . . Garrison Access 11 | . . . . . 1 2 . . . . . . . . . . 2 . . . . 1 . . . . . . 2 1 1 . 1 . . Machines Sabotaged . | . . . . . . . . . . . . . . . . . . . . . . . . . . . . . . . . . . . . Garrisons Compromised . | . . . . . . . . . . . . . . . . . . . . . . . . . . . . . . . . . . . . Overloaded Fab Kills . | . . . . . . . . . . . . . . . . . . . . . . . . . . . . . . . . . . . . Fab Network Shutdowns 7 | . . . . . . 1 . . . . . . . . . . 1 . . . . 1 . 1 . . . . 1 . . 1 1 . . Hacking | -11 -10 -10 -10 -9 -8 -7 -7 -7 -7 -7 -6 -6 -6 -6 -6 -5 -5 -5 -5 -5 -4 -4 -4 -4 -4 -4 -4 -3 -3 -3 -3 -2 -2 -1 -1 --------- Run | Scr Mat Min Exi Min Mat Fac Low Low Zio Dee Pro Fac Low Low Dat Pro Fac Upp Upp Zhi Pro Fac Was Fac Upp Upp War Pro Res Qua Sec Res Tes Acc Com Machines Accessed 141 | . 5 . 2 1 16 7 . 2 1 . . 8 2 . 4 . 14 . . 4 . 10 . 3 1 . 2 . 10 9 11 5 8 5 11 Terminals 78 | . 3 . . . 11 4 . . . . . 6 . . . . 6 . . . . 6 . 2 . . . . 5 5 8 2 6 5 9 Fabricators 10 | . . . . . . 1 . . . . . 1 . . . . 3 . . . . 1 . 1 . . . . 1 . . 1 1 . . Repair Stations 9 | . . . . . 1 . . . . . . . . . . . 2 . . . . 1 . . . . . . 1 1 . 1 . . 2 Recycling Units 4 | . 2 . . . 2 . . . . . . . . . . . . . . . . . . . . . . . . . . . . . . Scanalyzers 10 | . . . . . 1 . . . . . . 1 . . . . 1 . . . . 1 . . . . . . 1 2 2 1 . . . Garrison Access 11 | . . . . . 1 2 . . . . . . . . . . 2 . . . . 1 . . . . . . 2 1 1 . 1 . . Total Hacks 529 | . 20 . 3 1 55 22 . 4 8 . . 32 2 . 29 . 51 . . 17 . 48 . 26 1 . 2 . 34 26 40 22 38 22 26 Successful 387 | . 11 . 3 1 33 12 . 4 8 . . 19 2 . 29 . 39 . . 17 . 42 . 26 1 . 2 . 30 23 28 13 28 11 5 Failed 134 | . 8 . . . 21 10 . . . . . 12 . . . . 11 . . . . 6 . . . . . . 3 2 11 9 10 10 21 Catastrophic 26 | . . . . . 4 . . . . . . . . . . . 5 . . . . . . . . . . . . . 4 2 1 3 7 Database Lockouts 8 | . 1 . . . 1 . . . . . . 1 . . . . 1 . . . . . . . . . . . 1 1 1 . . 1 . Manual 268 | . 13 . 1 . 26 7 . . . . . 19 . . . . 26 . . . . 32 . 16 . . 1 . 11 16 33 9 30 15 13 Terminals 330 | . 17 . . . 43 11 . . . . . 23 . . . . 25 . . . . 37 . 15 . . . . 16 21 35 12 31 22 22 Fabricators 66 | . . . . . . 8 . . . . . 4 . . . . 15 . . . . 6 . 11 . . . . 9 . . 7 6 . . Repair Stations 20 | . . . . . 2 . . . . . . . . . . . 6 . . . . 2 . . . . . . 2 2 . 2 . . 4 Recycling Units 6 | . 3 . . . 3 . . . . . . . . . . . . . . . . . . . . . . . . . . . . . . Scanalyzers 25 | . . . . . 6 . . . . . . 5 . . . . 2 . . . . 2 . . . . . . 3 2 4 1 . . . Garrison Access 15 | . . . . . 1 3 . . . . . . . . . . 3 . . . . 1 . . . . . . 4 1 1 . 1 . . Terminal Hacks 205 | . 7 . 3 1 17 5 . 4 8 . . 6 2 . 29 . 12 . . 17 . 21 . 11 1 . 2 . 10 11 12 3 13 9 1 Record 24 | . . . 2 . . . . 3 . . . . 1 . 11 . . . . 5 . . . . . . . . 2 . . . . . . Part Schematic 43 | . . . . . . . . . 8 . . 1 . . 9 . 4 . . 4 . 9 . 3 . . . . 2 2 1 . . . . Robot Schematic 7 | . . . . . . . . . . . . . . . 6 . . . . . . 1 . . . . . . . . . . . . . Robot Analysis 14 | . 2 . . . 2 . . . . . . 1 . . . . 1 . . 4 . . . . . . . . . 1 . . . 3 . Prototype ID Bank 18 | . 2 . . . 5 . . . . . . . . . 3 . 1 . . 4 . 1 . . . . . . 1 1 . . . . . Open Door 13 | . . . . 1 . . . 1 . . . . 1 . . . . . . . . . . . 1 . 2 . 1 . 2 . . 3 1 Level Access Points 4 | . . . . . . . . . . . . . . . . . . . . . . . . . . . . . . 1 1 . 2 . . Branch Access Points 8 | . . . . . 1 1 . . . . . 1 . . . . . . . . . 1 . 1 . . . . 1 . . 1 . 1 . Emergency Access Points 1 | . . . . . 1 . . . . . . . . . . . . . . . . . . . . . . . . . . . . . . Machine Index 11 | . . . . . 1 . . . . . . 1 . . . . 1 . . . . 1 . 1 . . . . 1 1 1 1 1 1 . Terminal Index 1 | . . . . . 1 . . . . . . . . . . . . . . . . . . . . . . . . . . . . . . Alert Level 3 | . 1 . . . 1 . . . . . . . . . . . . . . . . 1 . . . . . . . . . . . . . Unreport Threat 19 | . . . . . 3 2 . . . . . . . . . . 2 . . . . . . 5 . . . . . 1 3 . 3 . . Locate Traps 10 | . 1 . . . 1 . . . . . . . . . . . 1 . . . . 1 . . . . . . 1 . 2 . 3 . . Disarm Traps 1 | . . . . . . . . . . . . . . . . . . . . . . . . . . . . . . . . . 1 . . Recall Investigation 2 | . . . . . . 1 . . . . . 1 . . . . . . . . . . . . . . . . . . . . . . . Recall Extermination 3 | . . . . . . . . . . . . . . . . . 1 . . . . 1 . . . . . . . 1 . . . . . Recall Reinforcements 4 | . 1 . . . . . . . . . . . . . . . . . . . . 1 . . . . . . . . . . 2 . . Hauler Manifests 9 | . . . . . 1 1 . . . . . . . . . . 1 . . . . 1 . 1 . . . . 1 . 1 1 . 1 . Registered Components 1 | . . . . . . . . . . . . . . . . . . . . . . 1 . . . . . . . . . . . . . Registered Prototypes 2 | . . . . . . . . . . . . 1 . . . . . . . . . 1 . . . . . . . . . . . . . Zone Layout 6 | . . . . . . . . . . . . . . . . . . . . . . 1 . . . . . . . 3 1 . 1 . . EX-Prototype ID Bank 1 | . . . 1 . . . . . . . . . . . . . . . . . . . . . . . . . . . . . . . . Fabricator Hacks 40 | . . . . . . 4 . . . . . 3 . . . . 9 . . . . 3 . 7 . . . . 6 . . 4 4 . . Network Status 1 | . . . . . . . . . . . . . . . . . 1 . . . . . . . . . . . . . . . . . . Load Schematic 17 | . . . . . . 1 . . . . . 1 . . . . 4 . . . . 1 . 3 . . . . 3 . . 2 2 . . Build 22 | . . . . . . 3 . . . . . 2 . . . . 4 . . . . 2 . 4 . . . . 3 . . 2 2 . . Repair Station Hacks 14 | . . . . . . . . . . . . . . . . . 6 . . . . 2 . . . . . . 2 2 . 2 . . . Scan Component 7 | . . . . . . . . . . . . . . . . . 3 . . . . 1 . . . . . . 1 1 . 1 . . . Repair 7 | . . . . . . . . . . . . . . . . . 3 . . . . 1 . . . . . . 1 1 . 1 . . . Recycling Unit Hacks 3 | . 1 . . . 2 . . . . . . . . . . . . . . . . . . . . . . . . . . . . . . Retrieve Components 3 | . 1 . . . 2 . . . . . . . . . . . . . . . . . . . . . . . . . . . . . . Scanalyzer 24 | . . . . . 5 . . . . . . 5 . . . . 2 . . . . 2 . . . . . . 3 2 4 1 . . . Insert Component 14 | . . . . . 1 . . . . . . 2 . . . . 1 . . . . 1 . . . . . . 2 2 4 1 . . . Analyze 10 | . . . . . 4 . . . . . . 3 . . . . 1 . . . . 1 . . . . . . 1 . . . . . . Garrison Access Hacks 11 | . . . . . 1 2 . . . . . . . . . . 2 . . . . 1 . . . . . . 2 1 1 . 1 . . Seal Access 11 | . . . . . 1 2 . . . . . . . . . . 2 . . . . 1 . . . . . . 2 1 1 . 1 . . Unauthorized Hacks 90 | . 3 . . . 8 1 . . . . . 5 . . . . 8 . . . . 13 . 8 . . . . 7 7 11 3 10 2 4 Terminals 67 | . 3 . . . 7 . . . . . . 4 . . . . 2 . . . . 10 . 4 . . . . 4 7 11 1 8 2 4 Track 15 | . . . . . . . . . . . . . . . . . . . . . . 2 . 1 . . . . 2 3 4 . 3 . . Assimilate 8 | . . . . . . . . . . . . 2 . . . . 1 . . . . 1 . 1 . . . . 2 1 . . . . . Botnet 27 | . 3 . . . 2 . . . . . . 2 . . . . 1 . . . . 5 . 1 . . . . . 1 3 1 3 2 3 Disrupt 11 | . . . . . 4 . . . . . . . . . . . . . . . . 1 . . . . . . . 1 3 . 1 . 1 Operators 6 | . . . . . 1 . . . . . . . . . . . . . . . . 1 . 1 . . . . . 1 1 . 1 . . Fabricators 22 | . . . . . . 1 . . . . . 1 . . . . 6 . . . . 3 . 4 . . . . 3 . . 2 2 . . Report 3 | . . . . . . . . . . . . . . . . . 1 . . . . 1 . 1 . . . . . . . . . . . Prioritize 6 | . . . . . . . . . . . . . . . . . 1 . . . . 1 . 1 . . . . 1 . . 1 1 . . Siphon 10 | . . . . . . 1 . . . . . 1 . . . . 3 . . . . 1 . 1 . . . . 1 . . 1 1 . . Haulers 3 | . . . . . . . . . . . . . . . . . 1 . . . . . . 1 . . . . 1 . . . . . . Repair Stations . | . . . . . . . . . . . . . . . . . . . . . . . . . . . . . . . . . . . . Recycling Units 1 | . . . . . 1 . . . . . . . . . . . . . . . . . . . . . . . . . . . . . . Mask 1 | . . . . . 1 . . . . . . . . . . . . . . . . . . . . . . . . . . . . . . Scanalyzers . | . . . . . . . . . . . . . . . . . . . . . . . . . . . . . . . . . . . . Garrison Access . | . . . . . . . . . . . . . . . . . . . . . . . . . . . . . . . . . . . . Data Cores Recovered 1 | . . . . . . . . . . . . . . . . . . . . . . . . . . . . . . . . . . . 1 Used 1 | . . . . . . . . . . . . . . . . . . . . . . . . . . . . . . . . . . . 1 Hacking Detections 80 | . 5 . . . 15 6 . . . . . 6 . . . . 6 . . . . 5 . 2 . . . . 5 5 4 3 5 2 11 Full Trace Events 10 | . . . . . 1 1 . . . . . 1 . . . . . . . . . . . . . . . . . . . . . . 7 Feedback Events 1 | . . . . . . . . . . . . . . . . . . . . . . . . . . . . . . . . . . . 1 Corruption 1 | . . . . . . . . . . . . . . . . . . . . . . . . . . . . . . . . . . . 1 Feedback Blocked . | . . . . . . . . . . . . . . . . . . . . . . . . . . . . . . . . . . . . Robot Schematics Acquired 7 | . . . . . . . . . . . . . . . 6 . . . . . . 1 . . . . . . . . . . . . . Robots Built . | . . . . . . . . . . . . . . . . . . . . . . . . . . . . . . . . . . . . Matter . | . . . . . . . . . . . . . . . . . . . . . . . . . . . . . . . . . . . . Time . | . . . . . . . . . . . . . . . . . . . . . . . . . . . . . . . . . . . . Total Robot Build Rating . | . . . . . . . . . . . . . . . . . . . . . . . . . . . . . . . . . . . . Part Schematics Acquired 48 | . . . . . 1 . . . 8 . . 3 . . 9 . 5 . . 4 . 10 . 2 . . . . 3 2 1 . . . . Parts Built 22 | . . . . . . 4 . . . . . 2 . . . . 4 . . . . 2 . 3 . . . . 3 . . 2 2 . . Matter 4866 | . . . . . . 503 . . . . . 426 . . . . 744 . . . . 526 . 767 . . . . 912 . . 600 388 . . Time 1916 | . . . . . . 349 . . . . . 100 . . . . 311 . . . . 280 . 362 . . . . 142 . . 162 210 . . Total Part Build Rating 145 | . . . . . . 20 . . . . . 10 . . . . 22 . . . . 14 . 24 . . . . 26 . . 17 12 . . Parts Repaired 7 | . . . . . . . . . . . . . . . . . 3 . . . . 1 . . . . . . 1 1 . 1 . . . Time 324 | . . . . . . . . . . . . . . . . . 126 . . . . 80 . . . . . . 44 34 . 40 . . . Parts Recycled . | . . . . . . . . . . . . . . . . . . . . . . . . . . . . . . . . . . . . Recycled Matter . | . . . . . . . . . . . . . . . . . . . . . . . . . . . . . . . . . . . . Retrieved Matter . | . . . . . . . . . . . . . . . . . . . . . . . . . . . . . . . . . . . . Retrieved Components 11 | . 1 . . . 10 . . . . . . . . . . . . . . . . . . . . . . . . . . . . . . Parts Scanalyzed 6 | . . . . . 1 . . . . . . 2 . . . . 1 . . . . 1 . . . . . . 1 . . . . . . Part Schematics Acquired 6 | . . . . . 1 . . . . . . 2 . . . . 1 . . . . 1 . . . . . . 1 . . . . . . Parts Damaged 2 | . . . . . . . . . . . . 1 . . . . 1 . . . . . . . . . . . . . . . . . . Bothacking | -11 -10 -10 -10 -9 -8 -7 -7 -7 -7 -7 -6 -6 -6 -6 -6 -5 -5 -5 -5 -5 -4 -4 -4 -4 -4 -4 -4 -3 -3 -3 -3 -2 -2 -1 -1 ------------ Run | Scr Mat Min Exi Min Mat Fac Low Low Zio Dee Pro Fac Low Low Dat Pro Fac Upp Upp Zhi Pro Fac Was Fac Upp Upp War Pro Res Qua Sec Res Tes Acc Com Used RIF Installer . | . . . . . . . . . . . . . . . . . . . . . . . . . . . . . . . . . . . . Robots Hacked . | . . . . . . . . . . . . . . . . . . . . . . . . . . . . . . . . . . . . Non-combat . | . . . . . . . . . . . . . . . . . . . . . . . . . . . . . . . . . . . . Combat . | . . . . . . . . . . . . . . . . . . . . . . . . . . . . . . . . . . . . Robot Hacks Applied . | . . . . . . . . . . . . . . . . . . . . . . . . . . . . . . . . . . . . Relay Couplers Released . | . . . . . . . . . . . . . . . . . . . . . . . . . . . . . . . . . . . . Robots Rewired . | . . . . . . . . . . . . . . . . . . . . . . . . . . . . . . . . . . . . Allies Hacked . | . . . . . . . . . . . . . . . . . . . . . . . . . . . . . . . . . . . . Hacks Repelled . | . . . . . . . . . . . . . . . . . . . . . . . . . . . . . . . . . . . . Allies | -11 -10 -10 -10 -9 -8 -7 -7 -7 -7 -7 -6 -6 -6 -6 -6 -5 -5 -5 -5 -5 -4 -4 -4 -4 -4 -4 -4 -3 -3 -3 -3 -2 -2 -1 -1 -------- Run | Scr Mat Min Exi Min Mat Fac Low Low Zio Dee Pro Fac Low Low Dat Pro Fac Upp Upp Zhi Pro Fac Was Fac Upp Upp War Pro Res Qua Sec Res Tes Acc Com Total Allies 13 | . . . . . . . . . 5 . . 2 . . . . 1 . . . . 1 . 1 . . . . 2 1 . . . . . Largest Group 5 | . . . . . . . . . 5 4 . 2 1 . . . 1 . . . . 1 . 1 . . . . 2 2 . . . . . Highest-Rated Group 138 | . . . . . . . . . 138 124 . 36 26 . . . 26 . . . . 26 . 26 . . . . 70 52 . . . . . Highest-Rated Ally 44 | . . . . . . . . . 42 42 . 26 26 . . . 26 . . . . 26 . 26 . . . . 44 26 . . . . . Total Orders 12 | . . . . . 1 . . . . 3 . . . . . . . . . . . . . 1 . . . . 4 3 . . . . . STAY 8 | . . . . . . . . . . 3 . . . . . . . . . . . . . 1 . . . . 2 2 . . . . . FOLLOW 3 | . . . . . . . . . . . . . . . . . . . . . . . . . . . . . 2 1 . . . . . RETURN 1 | . . . . . 1 . . . . . . . . . . . . . . . . . . . . . . . . . . . . . . Ally Attacks 60 | . . . . . . 5 . . . 52 . . . . 3 . . . . . . . . . . . . . . . . . . . . Total Damage 1239 | . . . . . . 277 . . . 836 . . . . 126 . . . . . . . . . . . . . . . . . . . . Kills 7 | . . . . . . 2 . . . 5 . . . . . . . . . . . . . . . . . . . . . . . . . Allies Corrupted . | . . . . . . . . . . . . . . . . . . . . . . . . . . . . . . . . . . . . Allies Melted . | . . . . . . . . . . . . . . . . . . . . . . . . . . . . . . . . . . . . Turrets Deployed 2 | . . . . . . 1 . . . . . . . . 1 . . . . . . . . . . . . . . . . . . . . Intel | -11 -10 -10 -10 -9 -8 -7 -7 -7 -7 -7 -6 -6 -6 -6 -6 -5 -5 -5 -5 -5 -4 -4 -4 -4 -4 -4 -4 -3 -3 -3 -3 -2 -2 -1 -1 ------- Run | Scr Mat Min Exi Min Mat Fac Low Low Zio Dee Pro Fac Low Low Dat Pro Fac Upp Upp Zhi Pro Fac Was Fac Upp Upp War Pro Res Qua Sec Res Tes Acc Com Robot Analysis Total 14 | . 2 . . . 2 . . . . . . 1 . . . . 1 . . 4 . . . . . . . . . 1 . . . 3 . Derelict Logs Recovered 21 | . . 1 . 1 . . 1 3 1 . 2 . 2 2 . 1 . . 1 . 2 . . . 1 3 . . . . . . . . . Drone Launches 8 | . . . . . 1 . . . . 7 . . . . . . . . . . . . . . . . . . . . . . . . . Drone Recoveries 5 | . . . . . 1 . . . . 4 . . . . . . . . . . . . . . . . . . . . . . . . . Exploration | -11 -10 -10 -10 -9 -8 -7 -7 -7 -7 -7 -6 -6 -6 -6 -6 -5 -5 -5 -5 -5 -4 -4 -4 -4 -4 -4 -4 -3 -3 -3 -3 -2 -2 -1 -1 ------------- Run | Scr Mat Min Exi Min Mat Fac Low Low Zio Dee Pro Fac Low Low Dat Pro Fac Upp Upp Zhi Pro Fac Was Fac Upp Upp War Pro Res Qua Sec Res Tes Acc Com Turns Passed 22154 | 24 1122 960 293 123 3837 2559 81 184 492 542 63 391 360 57 26 130 1191 71 182 102 143 798 9 356 179 173 173 77 577 834 656 1041 457 318 3573 Spaces Moved 30004 | 13 525 606 307 109 1401 1123 258 557 929 1039 225 878 831 202 86 336 2031 233 321 196 342 1202 61 454 284 457 506 209 891 1457 1192 1293 1190 547 7713 Core . | . . . . . . . . . . . . . . . . . . . . . . . . . . . . . . . . . . . . Treads 3016 | . 270 435 . . 1227 1084 . . . . . . . . . . . . . . . . . . . . . . . . . . . . . Legs 268 | 13 255 . . . . . . . . . . . . . . . . . . . . . . . . . . . . . . . . . . Wheels 761 | . . 171 307 109 174 . . . . . . . . . . . . . . . . . . . . . . . . . . . . . . Hover . | . . . . . . . . . . . . . . . . . . . . . . . . . . . . . . . . . . . . Flight 25959 | . . . . . . 39 258 557 929 1039 225 878 831 202 86 336 2031 233 321 196 342 1202 61 454 284 457 506 209 891 1457 1192 1293 1190 547 7713 Fastest Speed 8 | 120 120 90 90 100 100 28 28 28 28 27 27 26 26 23 26 23 26 30 30 27 24 30 15 27 13 27 27 24 23 15 30 13 13 13 8 Average Speed 41 | 120 154 142 93 100 176 168 28 28 28 27 27 26 26 25 26 25 26 30 30 29 29 30 15 28 25 27 27 26 25 29 30 24 25 23 12 Slowest Speed 205 | 120 160 180 100 100 200 205 28 28 28 35 99 27 26 26 26 26 30 30 30 30 30 114 15 30 27 27 27 27 27 30 30 93 93 26 26 Overloaded Moves 78 | . . . . . . . . . . . . . . 13 . 10 . . . . 24 . . . . . . 15 . . . . . . 16 Propulsion Burnouts . | . . . . . . . . . . . . . . . . . . . . . . . . . . . . . . . . . . . . Robots Hopped 146 | . . . . . . . . . . 1 . 4 2 2 1 1 8 3 . . 1 7 . 3 . . . 2 2 26 13 17 25 6 22 Cave-ins Triggered . | . . . . . . . . . . . . . . . . . . . . . . . . . . . . . . . . . . . . Teleports 1 | . . . . . . . . . . . . . . . . . . . . 1 . . . . . . . . . . . . . . . Exploration Rate (%) 56 | 3 81 99 68 32 96 29 50 81 84 78 48 18 65 58 76 61 42 39 72 62 57 28 84 8 65 65 71 46 21 94 68 23 96 11 58 Regions Visited 35 Branch Regions 24 Pre-discovered Areas 11 | . . 1 1 . . . . 1 2 . 1 . . . 1 . . . . 3 1 . . . . . . . . . . . . . . Known Exits Taken 28 | . . . . 1 . 1 1 1 1 1 1 1 1 1 1 1 1 1 1 1 1 . . 1 1 1 1 1 1 1 1 1 1 1 . Unknown Exits Taken 5 | 1 1 1 1 . 1 . . . . . . . . . . . . . . . . . . . . . . . . . . . . . . Scrap Searched 23 | . . 1 . . . . 1 1 2 . 1 . 4 2 . . . 2 2 . 1 . . . 1 3 . 2 . . . . . . . Spaces Dug 205 | . . . . . . 8 . 1 4 9 . 9 8 . . 4 15 . 3 . 3 19 . 4 3 6 . 1 12 16 9 36 19 16 . Terrain Destroyed 247 | . . 7 . . 27 13 . 1 4 9 . 9 8 . . 4 15 . 3 . 3 19 . 4 3 6 . 1 12 17 9 36 19 16 2 Melee 182 | . . . . . . 1 . 1 4 9 . 9 8 . . 4 15 . 3 . 3 19 . 4 3 6 . 1 12 16 9 35 11 9 . Projectile 19 | . . . . . . . . . . . . . . . . . . . . . . . . . . . . . . 1 . 1 8 7 2 AOE 46 | . . 7 . . 27 12 . . . . . . . . . . . . . . . . . . . . . . . . . . . . . Terrain Rammed . | . . . . . . . . . . . . . . . . . . . . . . . . . . . . . . . . . . . . Walls Destroyed . | . . . . . . . . . . . . . . . . . . . . . . . . . . . . . . . . . . . . Machines Disabled . | . . . . . . . . . . . . . . . . . . . . . . . . . . . . . . . . . . . . Actions | -11 -10 -10 -10 -9 -8 -7 -7 -7 -7 -7 -6 -6 -6 -6 -6 -5 -5 -5 -5 -5 -4 -4 -4 -4 -4 -4 -4 -3 -3 -3 -3 -2 -2 -1 -1 --------- Run | Scr Mat Min Exi Min Mat Fac Low Low Zio Dee Pro Fac Low Low Dat Pro Fac Upp Upp Zhi Pro Fac Was Fac Upp Upp War Pro Res Qua Sec Res Tes Acc Com Total 37327 | 16 731 651 315 116 2335 1548 266 582 1125 1207 225 1014 960 204 86 373 2633 230 401 227 377 1588 60 664 383 496 544 225 1207 1800 1437 1923 1260 713 9405 Wait 4993 | . 102 1 . . 575 181 9 25 175 76 . 116 120 1 . 35 536 1 76 13 34 351 . 192 92 34 23 18 272 322 205 548 17 141 702 Move 29691 | 12 524 605 306 108 1400 1122 257 556 928 1036 224 869 826 197 83 333 2014 226 320 195 339 1189 60 448 283 456 505 204 886 1404 1167 1264 1141 536 7668 Hop 132 | . . . . . . . . . . 1 . 4 2 2 1 1 8 3 . . 1 6 . 2 . . . 2 2 26 11 11 23 4 22 Pick Up 223 | . 20 4 4 1 51 21 . . . 12 . 6 . . . . 11 . 1 1 . 4 . 3 3 . 4 . 8 7 8 8 4 1 41 Fast Attach 116 | 1 1 . . . 12 13 . . 1 9 . 1 1 2 . . 11 . . 5 . 1 . 2 . . 3 . 4 4 4 8 8 1 24 Attach 105 | . 2 3 . . 10 22 . . . 5 1 2 . . . . 3 . . . . 5 . 1 . . 1 . 3 3 5 4 5 7 23 Detach 25 | . . . . . 3 . . . . 3 . . . . . . 1 . . . . 2 . . . . . . . 3 2 2 2 2 5 Swap 76 | . 4 3 1 1 12 10 . . . 3 . 2 . . . . 3 . . 2 . 2 . 4 2 . . . 2 2 3 3 3 . 14 Drop 275 | . 10 2 4 2 40 43 . . 1 16 . 5 . 2 1 . 13 . 1 4 . 4 . 4 . . 8 . 8 6 8 14 12 5 62 Fire 1352 | 3 67 33 . 4 226 130 . . . 6 . . . . . . . . . . . . . . . . . . . 3 5 14 10 7 844 Melee 326 | . . . . . . 1 . 1 20 40 . 9 11 . 1 4 33 . 3 7 3 23 . 8 3 6 . 1 22 20 19 47 35 9 . Ram 1 | . . . . . . . . . . . . . . . . . . . . . . 1 . . . . . . . . . . . . . Kick . | . . . . . . . . . . . . . . . . . . . . . . . . . . . . . . . . . . . . Crush 10 | . 1 . . . 6 3 . . . . . . . . . . . . . . . . . . . . . . . . . . . . . Escape Stasis 2 | . . . . . . 2 . . . . . . . . . . . . . . . . . . . . . . . . . . . . . Rewire . | . . . . . . . . . . . . . . . . . . . . . . . . . . . . . . . . . . . . Trap . | . . . . . . . . . . . . . . . . . . . . . . . . . . . . . . . . . . . . Miscellaneous . | . . . . . . . . . . . . . . . . . . . . . . . . . . . . . . . . . . . . Route ------- -11/Scrapyard -10/Materials (discovered 2 exits: [*Mat] / [*Min]) -10/Mines (discovered 3 exits: [*Mat x2] / *Exi) -10/Exiles -9/Mines (discovered 2 exits: *Mat x2) -8/Materials (discovered 3 exits: *Fac x3) -7/Factory (discovered 3 exits: *Sto / *Low x2) -7/Lower Caves -7/Lower Caves -7/Zion (discovered 2 exits: *Dee / *Pro) -7/Deep Caves -6/Proximity Caves -6/Factory (discovered 2 exits: *Low x2) -6/Lower Caves -6/Lower Caves -6/Data Miner -5/Proximity Caves -5/Factory (discovered 6 exits: *Fac x3 / *Upp x2 / *Ext) -5/Upper Caves -5/Upper Caves -5/Zhirov -4/Proximity Caves -4/Factory (discovered 4 exits: *Res / Upp x2 / Arm) -4/Waste -4/Factory (discovered 3 exits: *Upp x2 / Arm) -4/Upper Caves -4/Upper Caves -4/Warlord -3/Proximity Caves -3/Research (discovered 4 exits: Res x2 / *Qua x2) -3/Quarantine (discovered 2 exits: *Res / *Sec) -3/Section 7 -2/Research (discovered 2 exits: *Tes x2) -2/Testing -1/Access -1/Command (discovered 2 exits: *Sur x2) 0b11 Command History --------- Turn | Location | Event 9 | -11/Scrapyard | Discovered new exit (range 3) 25 | -11/Scrapyard | Entered Materials 310 | -10/Materials | Build established: Mutant 314 | -10/Materials | Discovered new exit (range 9) 929 | -10/Materials | Central database locked down 932 | -10/Materials | Discovered new exit (range 16) 1147 | -10/Materials | Entered Mines 1197 | -10/Mines | Deemed a non-threat by the Exiles lab entrance 1197 | -10/Mines | Discovered new exit (range 5) 1605 | -10/Mines | Learned location of Zion (-7) 1664 | -10/Mines | Discovered new exit (range 5) 1879 | -10/Mines | Discovered new exit (range 11) 2107 | -10/Mines | Entered Exiles 2130 | -10/Exiles | Met 8R-AWN 2144 | -10/Exiles | Met EX-HEX 2185 | -10/Exiles | Met EX-DEC 2255 | -10/Exiles | Met EX-BIN 2268 | -10/Exiles | Aligned with FarCom system 2269 | -10/Exiles | Given EX-Vault access code 2289 | -10/Exiles | Opened EX-Vault 2296 | -10/Exiles | Found Deploy-a-Sentry 2299 | -10/Exiles | Found Deploy-a-Sentry 2302 | -10/Exiles | Found Deploy-a-Sentry 2306 | -10/Exiles | Found Supersonic Drone Bay 2328 | -10/Exiles | Warned to stay clear of 0b10 Research branches 2337 | -10/Exiles | Exiles lab attacked by MAIN.C 2389 | -10/Exiles | Discovered new exit (range 14) 2400 | -10/Exiles | Stole two prototypes: Supersonic Drone Bay, Deploy-a-Sentry 2400 | -10/Exiles | Entered Mines 2402 | -9/Mines | Found the Drone Emporium 2406 | -9/Mines | Identified exit to Materials 2416 | -9/Mines | Found Prototype Device 2435 | -9/Mines | Met a Derelict bent on vengeance 2500 | -9/Mines | Discovered exit to Materials (range 8) 2505 | -9/Mines | Assembled infested the area 2510 | -9/Mines | Assisted by a Guerilla fighting off Assembled 2519 | -9/Mines | Core integrity fell below 50% 2523 | -9/Mines | Entered Materials 2523 | -8/Materials | Evolved 4 slots: Utility x4 2523 | -8/Materials | Identified Thief Drone Bay 2820 | -8/Materials | Build established: Hauler-Mutant 2901 | -8/Materials | Discovered new exit (range 10) 3554 | -8/Materials | Lost 3 parts (1n1u1w) 4021 | -8/Materials | Core integrity fell below 50% 4408 | -8/Materials | Central database locked down 4637 | -8/Materials | Discovered new exit (range 15) 6298 | -8/Materials | Discovered new exit (range 8) 6360 | -8/Materials | Entered Factory 6360 | -7/Factory | Evolved 2 slots: Propulsion x2 6362 | -7/Factory | FarCom data flow suspended 6910 | -7/Factory | Identified exit to Storage 6910 | -7/Factory | Identified exit to Lower Caves 7046 | -7/Factory | Fabricated Lgt. Antimatter Reactor? 7199 | -7/Factory | Fabricated Imp. VTOL Module? 7336 | -7/Factory | Fabricated Imp. VTOL Module (x1) 7460 | -7/Factory | Local fabrication network quarantined 8293 | -7/Factory | Lost 3 parts (2n1w) 8789 | -7/Factory | First assault squad dispatched 8874 | -7/Factory | DAS Turret deployed 8902 | -7/Factory | Lost 5 parts (1p2n2w) 8919 | -7/Factory | Entered Lower Caves 8941 | -7/Lower Caves | Spotted CK-M24(f) 8942 | -7/Lower Caves | Spotted UF-A3I(f) 8943 | -7/Lower Caves | Encountered a Master Thief 8943 | -7/Lower Caves | Encountered a Master Thief 8953 | -7/Lower Caves | Attracted the attention of an 0b10 outpost 8980 | -7/Lower Caves | Encountered a Warlord checkpoint 8996 | -7/Lower Caves | Discovered new exit (range 7) 8997 | -7/Lower Caves | Identified exit to Lower Caves 9000 | -7/Lower Caves | Entered another Lower Caves area 9015 | -7/Lower Caves | Learned location of 1 exit from Research 9068 | -7/Lower Caves | Learned Factory stockpile data 9172 | -7/Lower Caves | Discovered new exit (range 11) 9175 | -7/Lower Caves | Identified exit to Zion 9177 | -7/Lower Caves | Encountered a Warlord checkpoint 9184 | -7/Lower Caves | Entered Zion 9195 | -7/Zion | Discovered new exit (range 12) 9198 | -7/Zion | Identified exit to Proximity Caves 9232 | -7/Zion | Gained Derelict followers 9256 | -7/Zion | Learned Factory emergency access door positions 9257 | -7/Zion | Learned location of Recycling (-7) 9289 | -7/Zion | Build established: Hacker-Sprinter 9460 | -7/Zion | Discovered new exit (range 5) 9460 | -7/Zion | Saw the warning signs outside the Deep Caves entrance 9460 | -7/Zion | Identified exit to Deep Caves 9676 | -7/Zion | Entered Deep Caves 9676 | -7/Deep Caves | Accompanied by 4 allies 9800 | -7/Deep Caves | Attacked by Z-Imprinter 9820 | -7/Deep Caves | Core integrity fell below 50% 9830 | -7/Deep Caves | Allies destroyed Z-Imprinter 9871 | -7/Deep Caves | Lost 7 parts (1p3n1u2w) 9886 | -7/Deep Caves | Found Prototype Device 9887 | -7/Deep Caves | Identified Zio. Metafield Generator 9891 | -7/Deep Caves | Found Prototype Protection 9891 | -7/Deep Caves | Identified Zio. Weapon Casing 10022 | -7/Deep Caves | Found Zio. Weapon Casing 10044 | -7/Deep Caves | Found Zio. Weapon Casing 10045 | -7/Deep Caves | Found Zio. Weapon Casing 10062 | -7/Deep Caves | Z-Facility disabled 10217 | -7/Deep Caves | Discovered new exit (range 6) 10218 | -7/Deep Caves | Identified exit to Proximity Caves 10218 | -7/Deep Caves | Entered Proximity Caves 10277 | -6/Proximity Caves | Discovered new exit (range 14) 10280 | -6/Proximity Caves | Identified exit to Factory 10281 | -6/Proximity Caves | Entered Factory 10281 | -6/Factory | Evolved 2 slots: Utility x2 10282 | -6/Factory | Identified exit to Lower Caves 10304 | -6/Factory | Build established: Sprinter 10507 | -6/Factory | Fabricated Cld. Cesium-ion Thruster? 10587 | -6/Factory | Fabricated Cld. Cesium-ion Thruster (x1) 10608 | -6/Factory | Central database locked down 10628 | -6/Factory | Build established: Hacker-Sprinter 10672 | -6/Factory | Entered Lower Caves 10672 | -6/Lower Caves | Accompanied by 1 ally 10682 | -6/Lower Caves | Encountered a Warlord checkpoint 10744 | -6/Lower Caves | Identified exit to Lower Caves 10745 | -6/Lower Caves | Learned 4 Factory zone layouts 10766 | -6/Lower Caves | Learned 8 Factory zone layouts 11032 | -6/Lower Caves | Entered another Lower Caves area 11039 | -6/Lower Caves | Learned location of 1 exit from Factory 11040 | -6/Lower Caves | Learned Factory emergency access door positions 11068 | -6/Lower Caves | Attracted the attention of an 0b10 checkpoint 11073 | -6/Lower Caves | Discovered new exit (range 11) 11076 | -6/Lower Caves | Identified exit to Data Miner 11089 | -6/Lower Caves | Entered Data Miner 11089 | -6/Data Miner | Discovered new exit (range 6) 11091 | -6/Data Miner | Identified exit to Proximity Caves 11094 | -6/Data Miner | DAS Turret deployed 11095 | -6/Data Miner | Met Data Miner 11099 | -6/Data Miner | Learned location of Section 7 (-3) 11099 | -6/Data Miner | Acquired the access code to Warlord's prototype stash 11104 | -6/Data Miner | Received God Mode back door access code from Data Miner 11108 | -6/Data Miner | Data Conduit disabled 11115 | -6/Data Miner | Entered Proximity Caves 11126 | -5/Proximity Caves | Learned Factory stockpile data 11188 | -5/Proximity Caves | Spotted B-75 Beast 11242 | -5/Proximity Caves | Discovered new exit (range 14) 11245 | -5/Proximity Caves | Identified exit to Factory 11245 | -5/Proximity Caves | Entered Factory 11245 | -5/Factory | Evolved 2 slots: Utility x2 11246 | -5/Factory | Identified exit to Upper Caves 11247 | -5/Factory | Identified exit to Extension 11248 | -5/Factory | Identified exit to Factory 11325 | -5/Factory | Repaired Cld. Cesium-ion Thruster 11353 | -5/Factory | Fabricated Exp. Sensor Array? 11357 | -5/Factory | Repaired Imp. VTOL Module? 11470 | -5/Factory | Fabricated Adv. System Shield (x1) 11526 | -5/Factory | Fabricated Adv. System Shield (x1) 11603 | -5/Factory | Fabricated Exp. Utility Shielding (x1) 11628 | -5/Factory | Discovered exit to Factory (range 5) 11696 | -5/Factory | Discovered exit to Factory (range 9) 11712 | -5/Factory | Central database locked down 11777 | -5/Factory | Build established: Wizard-Sprinter 11806 | -5/Factory | Repaired Broken Exp. Cesium-ion Thruster 12233 | -5/Factory | Local fabrication network quarantined 12436 | -5/Factory | Entered Upper Caves 12505 | -5/Upper Caves | Discovered new exit (range 8) 12507 | -5/Upper Caves | Identified exit to Upper Caves 12507 | -5/Upper Caves | Entered another Upper Caves area 12559 | -5/Upper Caves | Learned Factory emergency access door positions 12685 | -5/Upper Caves | Discovered new exit (range 14) 12688 | -5/Upper Caves | Identified exit to Zhirov 12689 | -5/Upper Caves | Entered Zhirov 12689 | -5/Zhirov | Discovered new exit (range 3) 12690 | -5/Zhirov | Identified exit to Proximity Caves 12695 | -5/Zhirov | Met Zhirov 12700 | -5/Zhirov | Learned location of Quarantine (-3) 12700 | -5/Zhirov | Learned location of Testing (-2) 12700 | -5/Zhirov | Learned location of Command (-1) 12705 | -5/Zhirov | Zhirov requested help retrieving the SGEMP Prototype 12710 | -5/Zhirov | Found Alien Artifact 12710 | -5/Zhirov | Identified Integrated Dissipator 12710 | -5/Zhirov | Installed Integrated Dissipator, increased core heat dissipation (+20) 12741 | -5/Zhirov | Found Alien Artifact 12741 | -5/Zhirov | Identified Transdimensional Reconstructor 12741 | -5/Zhirov | Warped through subspace 12791 | -5/Zhirov | Entered Proximity Caves 12832 | -4/Proximity Caves | Spotted B-86 Titan 12866 | -4/Proximity Caves | Learned Research security intel 12889 | -4/Proximity Caves | Learned location of Armory (-4) 12932 | -4/Proximity Caves | Discovered exit to Factory (range 7) 12934 | -4/Proximity Caves | Entered Factory 12934 | -4/Factory | Evolved 2 slots: Utility x2 13019 | -4/Factory | Repaired Cld. Cesium-ion Thruster 13150 | -4/Factory | Identified exit to Upper Caves 13150 | -4/Factory | Identified exit to Armory 13338 | -4/Factory | Discovered new exit (range 7) 13587 | -4/Factory | Fabricated Exp. Hacking Suite? 13630 | -4/Factory | Local fabrication network quarantined 13684 | -4/Factory | First assault squad dispatched 13714 | -4/Factory | Fabricated Exp. Hacking Suite (x1) 13732 | -4/Factory | Manually triggered Chute Trap 13732 | -4/Factory | Sucked down chute 13732 | -4/Factory | Entered Waste 13733 | -4/Waste | Spotted C-40 Crusher 13734 | -4/Waste | Spotted C-40 Crusher 13735 | -4/Waste | Spotted C-40 Crusher 13737 | -4/Waste | Spotted C-40 Crusher 13737 | -4/Waste | Spotted C-40 Crusher 13740 | -4/Waste | Spotted C-40 Crusher 13740 | -4/Waste | Discovered new exit (range 10) 13741 | -4/Waste | Identified exit to Factory 13741 | -4/Waste | Entered Factory 13869 | -4/Factory | Fabricated Exp. System Shield (x1) 13935 | -4/Factory | Fabricated Impulse Thruster Array (x1) 14045 | -4/Factory | Local fabrication network quarantined 14046 | -4/Factory | Fabricated Cld. Q-thruster (x1) 14097 | -4/Factory | Entered Upper Caves 14250 | -4/Upper Caves | Learned Research terminal intel 14264 | -4/Upper Caves | Spotted N9-G08(f) 14265 | -4/Upper Caves | Encountered a Master Thief 14269 | -4/Upper Caves | Spotted N1-R83(f) 14270 | -4/Upper Caves | Encountered a Master Thief 14274 | -4/Upper Caves | Discovered new exit (range 10) 14276 | -4/Upper Caves | Identified exit to Upper Caves 14276 | -4/Upper Caves | Entered another Upper Caves area 14292 | -4/Upper Caves | Learned location of 1 exit from Research 14422 | -4/Upper Caves | Discovered new exit (range 6) 14422 | -4/Upper Caves | Identified exit to Warlord 14426 | -4/Upper Caves | Learned 8 Research zone layouts 14444 | -4/Upper Caves | Learned Research security intel 14449 | -4/Upper Caves | Entered Warlord 14458 | -4/Warlord | System corruption cleaned by Quarantine Array 14528 | -4/Warlord | Received a Watcher feed algorithm from an ecstatic Tinkerer 14529 | -4/Warlord | Warlord's base attacked by MAIN.C 14534 | -4/Warlord | Met Warlord 14536 | -4/Warlord | Opened Warlord's prototype stash 14538 | -4/Warlord | Found Prototype Device 14538 | -4/Warlord | Identified Exp. Focal Shield 14541 | -4/Warlord | Found Prototype Device 14541 | -4/Warlord | Identified Exp. Phase Shifter 14544 | -4/Warlord | Found Prototype Reactor 14553 | -4/Warlord | Found Prototype Processor 14593 | -4/Warlord | Opened side exit 14620 | -4/Warlord | Discovered new exit (range 9) 14622 | -4/Warlord | Identified exit to Proximity Caves 14622 | -4/Warlord | Entered Proximity Caves 14624 | -3/Proximity Caves | Attracted the attention of an 0b10 checkpoint 14697 | -3/Proximity Caves | Discovered new exit (range 5) 14698 | -3/Proximity Caves | Identified exit to Research 14699 | -3/Proximity Caves | Entered Research 14699 | -3/Research | Evolved 2 slots: Propulsion x1, Utility x1 14700 | -3/Research | Identified exit to Quarantine 14700 | -3/Research | Identified exit to Research 14703 | -3/Research | Loaded intel: 20 terminal locations 14742 | -3/Research | Central database locked down 14788 | -3/Research | Fabricated Spectral Analyzer? 14828 | -3/Research | Fabricated Cld. Q-thruster? 14866 | -3/Research | Repaired Fusion Reactor 14906 | -3/Research | Fabricated Cld. Q-thruster? 15094 | -3/Research | Local fabrication network quarantined 15260 | -3/Research | Identified Exp. Core Analyzer 15260 | -3/Research | Identified Vortex Chain Reactor 15276 | -3/Research | Entered Quarantine 15276 | -3/Quarantine | Accompanied by 1 ally 15305 | -3/Quarantine | Found Alien Artifact 15319 | -3/Quarantine | Central database locked down 15333 | -3/Quarantine | Identified Subatomic Replicator 15488 | -3/Quarantine | Found Alien Artifact 15528 | -3/Quarantine | Repaired Impulse Thruster Array 15666 | -3/Quarantine | Identified Core Reset Matrix 15896 | -3/Quarantine | Found Alien Energy Cannon 15896 | -3/Quarantine | Identified Core Cannon 16029 | -3/Quarantine | Found Alien Slashing Weapon 16029 | -3/Quarantine | Identified Sigix Broadsword 16091 | -3/Quarantine | Spotted Fortress 16109 | -3/Quarantine | Discovered new exit (range 5) 16110 | -3/Quarantine | Identified exit to Section 7 16110 | -3/Quarantine | Entered Section 7 16116 | -3/Section 7 | Found Integrated Dissipator 16116 | -3/Section 7 | Installed Integrated Dissipator, increased core heat dissipation (+20) 16130 | -3/Section 7 | Spotted S7 Guard 16142 | -3/Section 7 | Found Alien Artifact 16156 | -3/Section 7 | Central database locked down 16198 | -3/Section 7 | Found Alien Artifact 16267 | -3/Section 7 | Identified Integrity Redistributor 16267 | -3/Section 7 | Identified Core Membrane 16268 | -3/Section 7 | Installed Core Membrane, gained immunity to corruption 16384 | -3/Section 7 | Spotted S7 Guard 16388 | -3/Section 7 | Found Alien Artifact 16416 | -3/Section 7 | Spotted B-99 Colossus 16437 | -3/Section 7 | Found Alien Artifact 16696 | -3/Section 7 | Identified Integrated Heat Negator 16696 | -3/Section 7 | Identified LRC Insulator 16698 | -3/Section 7 | Spotted Alpha 7 16702 | -3/Section 7 | Spotted S7 Guard 16702 | -3/Section 7 | Installed Integrated Heat Negator, increased core heat dissipation (+40) 16712 | -3/Section 7 | Found Alien Artifact 16729 | -3/Section 7 | Installed LRC Insulator, gained EM resistance (25) 16732 | -3/Section 7 | Found Integrity Redistributor 16760 | -3/Section 7 | Spotted Executioner 16761 | -3/Section 7 | Spotted Executioner 16766 | -3/Section 7 | Entered Research 16766 | -2/Research | Warlord forces began assault on 0b10 16766 | -2/Research | Evolved 2 slots: Power x1, Propulsion x1 16777 | -2/Research | Identified Integrated Singularity Reactor 16780 | -2/Research | Identified exit to Testing 16838 | -2/Research | Repaired Exp. Utility Shielding? 16847 | -2/Research | Fabricated Exp. Weapon Cycler (x1) 16876 | -2/Research | Research machine network offline 16898 | -2/Research | Fabricated Exp. Target Analyzer (x1) 16971 | -2/Research | Local fabrication network quarantined 17034 | -2/Research | Met up with Warlord 17284 | -2/Research | Found Prototype Processor 17284 | -2/Research | Identified Exp. Melee Analysis Suite 17376 | -2/Research | Borebot progress halted 17381 | -2/Research | Borebot progress halted 17429 | -2/Research | Borebot progress halted 17563 | -2/Research | Borebot progress halted 17581 | -2/Research | Borebot progress halted 17793 | -2/Research | Warlord invited to help at Command 17807 | -2/Research | Entered Testing 17819 | -2/Testing | Identified exit to Access 17847 | -2/Testing | Found Prototype Hackware 17847 | -2/Testing | Identified Ghost Barrier 17958 | -2/Testing | Found Exp. Signal Interpreter 18008 | -2/Testing | Fabricated Exp. Targeting Computer? 18042 | -2/Testing | Found Prototype Device 18042 | -2/Testing | Identified Exp. Transmission Jammer 18051 | -2/Testing | Found Exp. Targeting Computer 18075 | -2/Testing | Spotted Striker 18076 | -2/Testing | Spotted Striker 18194 | -2/Testing | Fabricated Adv. Armor Integrity Analyzer? 18211 | -2/Testing | Local fabrication network quarantined 18211 | -2/Testing | Found Prototype Ballistic Cannon 18211 | -2/Testing | Identified Perforator 18264 | -2/Testing | Entered Access 18264 | -1/Access | Evolved 2 slots: Utility x2 18288 | -1/Access | Identified exit to Command 18568 | -1/Access | Central database locked down 18582 | -1/Access | Entered Command 18588 | -1/Command | Used Subatomic Replicator to replicate Integrated Singularity Reactor 18589 | -1/Command | Installed Integrated Singularity Reactor, increased core energy generation (+20) 18591 | -1/Command | Installed Integrated Singularity Reactor, increased core energy generation (+20) 18657 | -1/Command | Destroyed 8 combat bots 18692 | -1/Command | Spotted B-99 Colossus 18833 | -1/Command | Destroyed 11 combat bots 18870 | -1/Command | First assault squad dispatched 18877 | -1/Command | Build established: Machinist-Sprinter 18907 | -1/Command | Destroyed 9 combat bots 18950 | -1/Command | Spotted M Guard 18963 | -1/Command | Spotted M Guard 18965 | -1/Command | Spotted Combat Programmer 18966 | -1/Command | Spotted Combat Programmer 19019 | -1/Command | Destroyed Combat Programmer 19032 | -1/Command | Destroyed Combat Programmer 19044 | -1/Command | Found Antimissile System 19168 | -1/Command | Destroyed M Guard 19222 | -1/Command | Destroyed M Guard 19222 | -1/Command | Destroyed all MAIN.C guards 19253 | -1/Command | Met MAIN.C 19309 | -1/Command | Used Integrity Redistributor, redistributed integrity from core (-65) 19838 | -1/Command | MAIN.C activated Command garrisons 19980 | -1/Command | Destroyed 12 combat bots 20060 | -1/Command | Destroyed 13 combat bots 20312 | -1/Command | Destroyed 57 combat bots 20320 | -1/Command | Used Integrity Redistributor, redistributed integrity from core (-73) 20373 | -1/Command | Destroyed 11 combat bots 20453 | -1/Command | Destroyed 21 combat bots 20857 | -1/Command | Destroyed 83 combat bots 21339 | -1/Command | Destroyed 87 combat bots 21526 | -1/Command | Destroyed 31 combat bots 21648 | -1/Command | Destroyed MAIN.C Shell 21650 | -1/Command | Surrendered to MAIN.C 21650 | -1/Command | Loaded intel: 48 machine locations 21650 | -1/Command | Loaded intel: 87 trap records 21650 | -1/Command | Identified exit to Surface 21650 | -1/Command | Discovered exit to Surface (range 103) 21650 | -1/Command | Discovered exit to Surface (range 61) 21697 | -1/Command | MAIN.C activated Command garrisons 21735 | -1/Command | Unknown forces attacked Command 21735 | -1/Command | Spotted EQ-001 21735 | -1/Command | Spotted EQ-002 21735 | -1/Command | Spotted EQ-000 21735 | -1/Command | Spotted EQ-005 21735 | -1/Command | Spotted EQ-004 21735 | -1/Command | Spotted EQ-006 21739 | -1/Command | Spotted EQ-003 21789 | -1/Command | Lost 4 parts (3u1w) 21806 | -1/Command | Spotted EQ-017 21827 | -1/Command | Spotted EQ-033 21830 | -1/Command | Spotted EQ-018 21843 | -1/Command | Spotted EQ-022 21843 | -1/Command | Spotted EQ-019 21843 | -1/Command | Spotted EQ-021 21845 | -1/Command | Destroyed EQ-021 21854 | -1/Command | Destroyed EQ-019 21856 | -1/Command | Destroyed EQ-022 21858 | -1/Command | Spotted EQ-029 21930 | -1/Command | Spotted EQ-039 21930 | -1/Command | Spotted EQ-038 21930 | -1/Command | Spotted EQ-042 21937 | -1/Command | Spotted EQ-055 21949 | -1/Command | Destroyed EQ-038 21959 | -1/Command | Destroyed EQ-039 21967 | -1/Command | Destroyed EQ-055 21970 | -1/Command | Spotted EQ-028 21979 | -1/Command | Spotted EQ-031 21980 | -1/Command | Spotted EQ-041 21987 | -1/Command | Destroyed EQ-028 21994 | -1/Command | Destroyed EQ-041 22001 | -1/Command | Spotted EQ-054 22001 | -1/Command | Spotted EQ-011 22005 | -1/Command | Spotted EQ-045 22035 | -1/Command | Spotted EQ-080 22035 | -1/Command | Spotted EQ-062 22035 | -1/Command | Spotted EQ-063 22036 | -1/Command | Spotted EQ-067 22037 | -1/Command | Spotted EQ-065 22040 | -1/Command | Spotted EQ-060 22047 | -1/Command | Destroyed EQ-060 22048 | -1/Command | Spotted EQ-069 22052 | -1/Command | Build established: Scavenger-Sprinter 22059 | -1/Command | Spotted EQ-050 22059 | -1/Command | Spotted EQ-032 22063 | -1/Command | Core integrity fell below 50% 22064 | -1/Command | Spotted EQ-009 22072 | -1/Command | Destroyed EQ-032 22115 | -1/Command | Spotted EQ-049 22117 | -1/Command | Spotted EQ-061 22121 | -1/Command | Spotted EQ-074 22124 | -1/Command | Spotted EQ-082 22135 | -1/Command | Spotted EQ-066 22146 | -1/Command | Spotted EQ-096 22154 | -1/Command | Spotted EQ-093 22155 | *** | Establishing 0b11! Last Messages --------------- 22124_ Destroyed Prototype Ballistic Gun. 22125_ MAIN.C suffers critical hit. 22126_ EQ-067 knocked back. 22127_ EQ-062 knocked back. 22127_ EQ-080 system corrupted by crushing effect. 22128_ Adv. Phase Shifter destroyed. 22129_ Slug penetrates MAIN.C. 22130_ EQ-067 knocked back. 22131_ Slug penetrates MAIN.C. 22131_ Vortex Chain Reactor destroyed. 22131_ Penetrated by Slug. 22132_ Slug penetrates MAIN.C. 22133_ MAIN.C: "Ha ha ha." 22133_ MAIN.C destroyed. EQ-096 warps into view. 22146_ EQ-096 knocked back. 22153_ EQ-096 suffers critical hit. 22153_ Destroyed Lgt. Quantum Reactor. 22154_ Impulse Thruster Array destroyed. 22154_ Slug penetrates EQ-080. Map ----- +----------------------------------------------------+ | # ## * ! !# ## ### # ## #?### """ | | # #|#= ## * # ###?### ## #?#?# """ | | !!= == ### ####### ## #?#?########## | | == ** ## ## #?#??????????? | | *! ]]= ### ## ## #?############ | | # ## % ! #?# ## ## #????????????? | | * !!! #?# ## ## #????????????? | | ! = = ! #?# ## + #????????????? | | # !! #?# ## ## #????????????? | | # #?# ## ##+####????????????? | | # #### #?# ## ## #???????????????? | | #### /"# ####?# #?# ## ##+####????????????? | | #?# #?# ## # #????????????? | | #?# #?# ## # #????????????? | | """ #?# #?# ## # #????????????? | | ""T"" ### ### ## # #????????????? | | "" "" ## ##+###### # #????????????? | | ## # #????????????? | | ## + #????????????? | | ## #### #????????????? | | #######??# !#????????????? | | #????????# #????????????? | | !#????????# # #????????????? | | =*= #????????## ### # #????????????? | | ##!######+#######?????# ## ##+####????????????? | | ?#%#??# #?????# @ ## #???????????????? | | ?#%#??# #?????# ## #???????????????? | | ?#!#??# #?????####### #???????????????? | | ?#!#??# #???????????# #???????????????? | | ?#/#??#####+##+##???????????# #???????????????? | | ?# #??????# #????????????# #???????????????? | | ?# #??????# #????????????# #???????????????? | | ## ######## ############## #???????????????? | | ^ #???????????????? | | ##### #########################???????????????? | | ????# # #?????????????????????????????? | | ????# # #?????????????????????????????? | | ????# # "" #?????????????????????????????? | | ????# # """"#?????????????????????????????? | | ????# + """"#?????????????????????????????? | | ????###### "" #?????????????????????????????? | | ?????????# #?????????????????????????????? | | ?????????# #?????????????????????????????? | | ?????????###########?????????????????????????????? | | ?????????????????????????????????????????????????? | | ?????????????????????????????????????????????????? | | ?????????????????????????????????????????????????? | | ?????????????????????????????????????????????????? | | ?????????????????????????????????????????????????? | | ?????????????????????????????????????????????????? | +----------------------------------------------------+ Best States ------------- Heat Dissipation 132 Energy Generation 115 Energy Capacity 1170 Matter Stores 300 Matter Capacity 300 Sight Range 24 Robot Scan Range 30 Terrain Scan Density 10 Power Amplification 40 Additional Mass Support 25 Armor Coverage 600 Resistance: KI 30 Resistance: EM 25 Utility Shielding 90 Weapon Shielding 100 Point Defense Rating 240 Weapon Cycling 30 Phase Shifting 20 Evasion (%) 101 Targeting Accuracy 40 Melee Accuracy 8 Target Analysis 12 Core Analysis 15 Armor Integrity Analysis 66 Recoil Reduction 4 Matter Filtering 50 Stasis Canceling 1 Offensive Hacking 76 Defensive Hacking 64 Item Schematics ----------------- Imp. VTOL Module | -8/Materials | Scanalyzed Beamcaster | -7/Zion | Free Riot Gun | -7/Zion | Free Hvy. Riot Gun | -7/Zion | Free Battle Rifle | -7/Zion | Free Hvy. Battle Rifle | -7/Zion | Free Slug Cannon | -7/Zion | Free Flamer | -7/Zion | Free Enh. Flamer | -7/Zion | Free Cld. Cesium-ion Thruster | -6/Factory | Hacked Imp. Cesium-ion Thruster | -6/Factory | Scanalyzed Adv. Phase Shifter | -6/Factory | Scanalyzed Combat Drone Bay | -6/Data Miner | Free Lgt. Regenerative Plating | -6/Data Miner | Free Cmb. Gravmag System | -6/Data Miner | Free Exp. Sensor Array | -6/Data Miner | Free Exp. Terrain Scanner | -6/Data Miner | Free Exp. Terrain Scan Processor | -6/Data Miner | Free Exp. Targeting Computer | -6/Data Miner | Free Cloaking Device | -6/Data Miner | Free Kinetic Spear | -6/Data Miner | Free Exp. Utility Shielding | -5/Factory | Hacked Adv. System Shield | -5/Factory | Hacked Adv. Hacking Suite | -5/Factory | Hacked Impulse Thruster Array | -5/Factory | Hacked Exp. Cesium-ion Thruster | -5/Factory | Scanalyzed Assault Drone Bay | -5/Zhirov | Free Exp. Heat Sink | -5/Zhirov | Free Exp. Optical Array | -5/Zhirov | Free Imp. Arc Thrower | -5/Zhirov | Free Prc. Matter Filter | -4/Factory | Scanalyzed Adv. Power Amplifier | -4/Factory | Hacked Exp. Hacking Suite | -4/Factory | Hacked Adv. Armor Integrity Analyzer | -4/Factory | Hacked Adv. Weapon Cycler | -4/Factory | Hacked Adv. Force Field | -4/Factory | Hacked Exp. System Shield | -4/Factory | Hacked Hyp. Railgun | -4/Factory | Hacked Mni. Smartbomb Launcher | -4/Factory | Hacked Adv. Core Analyzer | -4/Factory | Hacked Cld. Q-thruster | -4/Factory | Hacked Adv. Reaction Control System | -4/Factory | Hacked Spectral Analyzer | -3/Research | Hacked Lgt. Quantum Reactor | -3/Research | Hacked Vortex Chain Reactor | -3/Research | Scanalyzed Exp. Target Analyzer | -3/Quarantine | Hacked Exp. Power Amplifier | -3/Quarantine | Hacked Exp. Weapon Cycler | -3/Section 7 | Hacked Robot Schematics ------------------ S-27 Virus | -6/Data Miner | Free G-50 Soldier | -6/Data Miner | Free L-41 Fighter | -6/Data Miner | Free P-70 Sage | -6/Data Miner | Free I-36 Angel | -6/Data Miner | Free I-47 Archangel | -6/Data Miner | Free H-77 Assassin | -4/Factory | Hacked Fabricated ------------ Lgt. Antimatter Reactor | x2 | -7/Factory | Preloaded Imp. VTOL Module | x1 | -7/Factory Imp. VTOL Module | x1 | -7/Factory Cld. Cesium-ion Thruster | x1 | -6/Factory Cld. Cesium-ion Thruster | x1 | -6/Factory Exp. Sensor Array | x1 | -5/Factory Adv. System Shield | x1 | -5/Factory Adv. System Shield | x1 | -5/Factory Exp. Utility Shielding | x1 | -5/Factory Exp. Hacking Suite | x1 | -4/Factory Exp. Hacking Suite | x1 | -4/Factory Exp. System Shield | x1 | -4/Factory Impulse Thruster Array | x1 | -4/Factory Cld. Q-thruster | x1 | -4/Factory Spectral Analyzer | x1 | -3/Research Cld. Q-thruster | x1 | -3/Research Cld. Q-thruster | x1 | -3/Research Exp. Weapon Cycler | x1 | -2/Research Exp. Target Analyzer | x1 | -2/Research Exp. Targeting Computer | x1 | -2/Testing Adv. Armor Integrity Analyzer | x1 | -2/Testing Alien Tech Used ----------------- Integrated Dissipator Transdimensional Reconstructor Core Cannon Sigix Broadsword Core Membrane Integrated Heat Negator LRC Insulator Subatomic Replicator Integrated Singularity Reactor Integrity Redistributor Achievements -------------- None Challenges ------------ None Game ------ Seed SupersonicCentriumCasing Manual? 0 Play Time 08:14:42 Cumulative 743.0 hours Start 2020.09.16 @ 20:42:52 End 2020.09.19 @ 17:02:43 Sessions 10 Manual Loads 0 Difficulty Rogue Special Mode None Game No. 472 Rogue 472 Adventurer 0 Explorer 0 Win Type 1 Total 110 Types 75/7/8/10/5/1/4/0/0 Lore% 95 Gallery% 94 Achievement% 81 Wizard Run 0 Options --------- ASCII 0 Keyboard 0 Movement Numpad Keybinds 0 Fullscreen 2 Font 18/SmallcapsGlow Map View 76x50 Tactical HUD 1 Map Filters NONE Filters NONE Steam 1 RUN: 5dc55a5e-7d7e-4a5c-9827-13de7f0db39d